Workbook

Sheet Benefits-Cost Summary
A1: Elmore-Worcester VT Route-15
A2: BENEFIT-COST ANALYSIS
A3: =TODAY() -> 2023-08-10
A5: Benefits | N5: Costs
A6: Calendar Year | B6: Project Year | C6: ='VHT Savings'!D10 -> Value of Time Savings ($2021) | D6: Value of O&M Saved ($2021) | E6: Avoided Future Construction Costs ($2021) | F6: Emergency Maintenance Cost ($2021)2 | G6: Residual Value of New Bridge ($2021) | H6: Total Benefits ($2021) | I6: 7% Rate | J6: Total Benefits ($2021) Discounted 7% | K6: 3% Rate | L6: Total Benefits ($2021) Discounted 3% | N6: Initial Project Costs ($2022)1 | Q6: 7% Rate | R6: Total Costs ($2021) Discounted 7% | S6: 3% Rate | T6: Total Costs ($2021) Discounted 3% | U6: Net Present Value AT 7% | V6: Net Present Value AT 3%
A7: 2023 | B7: 1 | C7: ='VHT Savings'!D13 -> $0 | D7: ='Vehicle Operating Cost Savings'!D14 -> $0 | E7: ='Crash Costs Summary'!K12 -> $0 | F7: $50,000.00 | H7: =C7+D7+E7+F7 -> $50,000 | I7: =1/(1+0.07)^(A7-2021) -> 0.87 | J7: =I7*H7 -> $43,672 | K7: =1/(1+0.03)^(A7-2021) -> 0.94 | L7: =K7*H7 -> $47,130 | N7: ='Funding Assumptions'!J30+'Funding Assumptions'!O30 -> $0 | Q7: =1/(1+0.07)^(A7-2021) -> 0.87 | R7: =Q7*N7 -> $0 | S7: =1/(1+0.03)^(A7-2021) -> 0.94 | T7: =S7*N7 -> $0 | U7: =J7-R7 -> $43,672 | V7: =L7-T7 -> $47,130
A8: =A7+1 -> 2024 | B8: =B7+1 -> 2 | C8: ='VHT Savings'!D14 -> $0 | D8: ='Vehicle Operating Cost Savings'!D15 -> $0 | E8: ='Crash Costs Summary'!K13 -> $0 | F8: $50,000.00 | H8: $50,000 | I8: =1/(1+0.07)^(A8-2021) -> 0.82 | J8: =I8*H8 -> $40,815 | K8: =1/(1+0.03)^(A8-2021) -> 0.92 | L8: =K8*H8 -> $45,757 | N8: ='Funding Assumptions'!J31+'Funding Assumptions'!O31 -> $0 | Q8: =1/(1+0.07)^(A8-2021) -> 0.82 | R8: =Q8*N8 -> $0 | S8: =1/(1+0.03)^(A8-2021) -> 0.92 | T8: =S8*N8 -> $0 | U8: $40,815 | V8: $45,757
A9: =A8+1 -> 2025 | B9: =B8+1 -> 3 | C9: ='VHT Savings'!D15 -> $0 | D9: ='Vehicle Operating Cost Savings'!D16 -> $0 | E9: ='Crash Costs Summary'!K14 -> $0 | F9: $50,000.00 | H9: $50,000 | I9: 0.76 | J9: $38,145 | K9: 0.89 | L9: $44,424 | N9: ='Funding Assumptions'!J32+'Funding Assumptions'!O32 -> $5,295,000 | Q9: 0.76 | R9: $4,039,530 | S9: 0.89 | T9: $4,704,539 | U9: =J9-R9 -> ($4,001,385) | V9: ($4,660,115)
A10: 2026 | B10: 4 | C10: ='VHT Savings'!D16 -> $0 | D10: ='Vehicle Operating Cost Savings'!D17 -> $0 | E10: ='Crash Costs Summary'!K15 -> $0 | F10: $50,000.00 | H10: $50,000 | I10: 0.71 | J10: $35,649 | K10: 0.86 | L10: $43,130 | N10: ='Funding Assumptions'!J33+'Funding Assumptions'!O33 -> $5,295,000 | Q10: 0.71 | R10: $3,775,262 | S10: 0.86 | T10: $4,567,514 | U10: ($3,739,613) | V10: ($4,524,383)
A11: 2027 | B11: 5 | C11: ='VHT Savings'!D17 -> $0 | D11: ='Vehicle Operating Cost Savings'!D18 -> $0 | E11: ='Crash Costs Summary'!K16 -> $0 | F11: $50,000.00 | H11: $50,000 | I11: 0.67 | J11: $33,317 | K11: 0.84 | L11: $41,874 | N11: ='Funding Assumptions'!O35 -> $0 | Q11: 0.67 | R11: $0 | S11: 0.84 | T11: $0 | U11: $33,317 | V11: $41,874
A12: 2028 | B12: 6 | C12: ='VHT Savings'!D18 -> $0 | D12: ='Vehicle Operating Cost Savings'!D19 -> $0 | E12: ='Crash Costs Summary'!K17 -> $0 | F12: $50,000.00 | H12: $50,000 | I12: 0.62 | J12: $31,137 | K12: 0.81 | L12: =K12*H12 -> $40,655 | N12: ='Funding Assumptions'!O36 -> $0 | Q12: 0.62 | R12: $0 | S12: 0.81 | T12: $0 | U12: $31,137 | V12: $40,655
A13: 2029 | B13: 7 | C13: ='VHT Savings'!D19 -> $0 | D13: ='Vehicle Operating Cost Savings'!D20 -> $0 | E13: ='Crash Costs Summary'!K18 -> $0 | F13: $50,000.00 | H13: $50,000 | I13: 0.58 | J13: $29,100 | K13: 0.79 | L13: $39,470 | N13: ='Funding Assumptions'!O37 -> $0 | Q13: 0.58 | R13: $0 | S13: 0.79 | T13: $0 | U13: $29,100 | V13: $39,470
A14: 2030 | B14: 8 | C14: ='VHT Savings'!D20 -> $2,398,535 | D14: ='Vehicle Operating Cost Savings'!D21 -> $1,329,295 | E14: ='Crash Costs Summary'!K19 -> $0 | H14: $3,727,830 | I14: 0.54 | J14: $2,027,693 | K14: 0.77 | L14: $2,857,072 | N14: ='Funding Assumptions'!O38 -> $0 | Q14: 0.54 | R14: $0 | S14: 0.77 | T14: $0 | U14: $2,027,693 | V14: $2,857,072
A15: 2031 | B15: 9 | C15: ='VHT Savings'!D21 -> $2,413,812 | D15: ='Vehicle Operating Cost Savings'!D22 -> $1,337,762 | E15: ='Crash Costs Summary'!K20 -> $0 | H15: $3,751,574 | I15: 0.51 | J15: $1,907,110 | K15: 0.74 | L15: $2,791,524 | N15: ='Funding Assumptions'!O39 -> $0 | Q15: 0.51 | R15: $0 | S15: 0.74 | T15: $0 | U15: $1,907,110 | V15: $2,791,524
A16: 2032 | B16: 10 | C16: ='VHT Savings'!D22 -> $2,429,089 | D16: ='Vehicle Operating Cost Savings'!D23 -> $1,346,229 | E16: ='Crash Costs Summary'!K21 -> $0 | H16: $3,775,319 | I16: 0.48 | J16: $1,793,627 | K16: 0.72 | L16: $2,727,371 | N16: ='Funding Assumptions'!O40 -> $0 | Q16: 0.48 | R16: =Q16*P16 -> $0 | S16: 0.72 | T16: $0 | U16: $1,793,627 | V16: $2,727,371
A17: 2033 | B17: 11 | C17: ='VHT Savings'!D23 -> $2,444,367 | D17: ='Vehicle Operating Cost Savings'!D24 -> $1,354,696 | E17: ='Crash Costs Summary'!K22 -> $0 | H17: $3,799,063 | I17: 0.44 | J17: $1,686,829 | K17: 0.70 | L17: $2,664,586 | N17: ='Funding Assumptions'!T40 -> $0 | Q17: 0.44 | R17: $0 | S17: 0.70 | T17: $0 | U17: $1,686,829 | V17: $2,664,586
A18: 2034 | B18: 12 | C18: ='VHT Savings'!D24 -> $2,459,644 | D18: ='Vehicle Operating Cost Savings'!D25 -> $1,363,163 | E18: ='Crash Costs Summary'!K23 -> $0 | H18: $3,822,807 | I18: 0.41 | J18: $1,586,329 | K18: 0.68 | L18: $2,603,145 | N18: ='Funding Assumptions'!T41 -> $0 | Q18: 0.41 | R18: $0 | S18: 0.68 | T18: $0 | U18: $1,586,329 | V18: $2,603,145
A19: 2035 | B19: 13 | C19: ='VHT Savings'!D25 -> $2,474,921 | D19: ='Vehicle Operating Cost Savings'!D26 -> $1,371,630 | E19: ='Crash Costs Summary'!K24 -> $0 | H19: $3,846,551 | I19: 0.39 | J19: $1,491,759 | K19: 0.66 | L19: $2,543,023 | N19: ='Funding Assumptions'!T42 -> $0 | Q19: 0.39 | R19: $0 | S19: 0.66 | T19: $0 | U19: $1,491,759 | V19: $2,543,023
A20: 2036 | B20: 14 | C20: ='VHT Savings'!D26 -> $2,490,199 | D20: ='Vehicle Operating Cost Savings'!D27 -> $1,380,097 | E20: ='Crash Costs Summary'!K25 -> $0 | H20: =C20+D20+E20+F20 -> $3,870,295 | I20: 0.36 | J20: =I20*H20 -> $1,402,773 | K20: 0.64 | L20: $2,484,195 | N20: ='Funding Assumptions'!T43 -> $0 | Q20: 0.36 | R20: $0 | S20: 0.64 | T20: $0 | U20: $1,402,773 | V20: $2,484,195
A21: 2037 | B21: 15 | C21: ='VHT Savings'!D27 -> $2,505,476 | D21: ='Vehicle Operating Cost Savings'!D28 -> $1,388,563 | E21: ='Crash Costs Summary'!K26 -> $0 | H21: =C21+D21+E21+F21 -> $3,894,039 | I21: 0.34 | J21: $1,319,046 | K21: 0.62 | L21: =K21*H21 -> $2,426,637 | N21: $0 | Q21: 0.34 | R21: =Q21*P21 -> $0 | S21: 0.62 | T21: $0 | U21: $1,319,046 | V21: $2,426,637
A22: 2038 | B22: 16 | C22: ='VHT Savings'!D28 -> $2,520,753 | D22: ='Vehicle Operating Cost Savings'!D29 -> $1,397,030 | E22: ='Crash Costs Summary'!K27 -> $0 | H22: $3,917,783 | I22: 0.32 | J22: $1,240,270 | K22: 0.61 | L22: $2,370,323 | N22: $0 | Q22: 0.32 | R22: $0 | S22: 0.61 | T22: $0 | U22: $1,240,270 | V22: $2,370,323
A23: 2039 | B23: 17 | C23: ='VHT Savings'!D29 -> $2,536,030 | D23: ='Vehicle Operating Cost Savings'!D30 -> $1,405,497 | E23: ='Crash Costs Summary'!K28 -> $0 | H23: $3,941,528 | I23: 0.30 | J23: $1,166,156 | K23: 0.59 | L23: $2,315,232 | N23: $0 | Q23: 0.30 | R23: $0 | S23: 0.59 | T23: $0 | U23: $1,166,156 | V23: $2,315,232
A24: 2040 | B24: 18 | C24: ='VHT Savings'!D30 -> $2,551,308 | D24: ='Vehicle Operating Cost Savings'!D31 -> $1,413,964 | E24: ='Crash Costs Summary'!K29 -> $0 | H24: $3,965,272 | I24: 0.28 | J24: $1,096,431 | K24: 0.57 | L24: $2,261,339 | N24: $0 | Q24: 0.28 | R24: $0 | S24: 0.57 | T24: $0 | U24: $1,096,431 | V24: $2,261,339
A25: 2041 | B25: 19 | C25: ='VHT Savings'!D31 -> $2,566,585 | D25: ='Vehicle Operating Cost Savings'!D32 -> $1,422,431 | E25: ='Crash Costs Summary'!K30 -> $0 | H25: $3,989,016 | I25: 0.26 | J25: $1,030,838 | K25: 0.55 | L25: $2,208,621 | N25: $0 | Q25: 0.26 | R25: =Q25*P25 -> $0 | S25: 0.55 | T25: $0 | U25: $1,030,838 | V25: $2,208,621
A26: 2042 | B26: 20 | C26: ='VHT Savings'!D32 -> $2,581,862 | D26: ='Vehicle Operating Cost Savings'!D33 -> $1,430,898 | E26: ='Crash Costs Summary'!K31 -> $0 | H26: $4,012,760 | I26: 0.24 | J26: $969,134 | K26: 0.54 | L26: $2,157,056 | N26: $0 | Q26: 0.24 | R26: $0 | S26: 0.54 | T26: $0 | U26: $969,134 | V26: $2,157,056
A27: 2043 | B27: 21 | C27: ='VHT Savings'!D33 -> $2,597,140 | D27: ='Vehicle Operating Cost Savings'!D34 -> $1,439,365 | E27: ='Crash Costs Summary'!K32 -> $0 | H27: $4,036,504 | I27: 0.23 | J27: $911,092 | K27: 0.52 | L27: $2,106,621 | N27: $0 | Q27: 0.23 | R27: $0 | S27: 0.52 | T27: $0 | U27: $911,092 | V27: $2,106,621
A28: 2044 | B28: 22 | C28: ='VHT Savings'!D34 -> $2,612,417 | D28: ='Vehicle Operating Cost Savings'!D35 -> $1,447,831 | E28: ='Crash Costs Summary'!K33 -> $0 | H28: $4,060,248 | I28: 0.21 | J28: $856,497 | K28: 0.51 | L28: $2,057,294 | N28: $0 | Q28: 0.21 | R28: $0 | S28: 0.51 | T28: $0 | U28: $856,497 | V28: $2,057,294
A29: 2045 | B29: 23 | C29: ='VHT Savings'!D35 -> $2,627,694 | D29: ='Vehicle Operating Cost Savings'!D36 -> $1,456,298 | E29: ='Crash Costs Summary'!K34 -> $0 | H29: $4,083,992 | I29: 0.20 | J29: $805,145 | K29: 0.49 | L29: $2,009,054 | N29: $0 | Q29: 0.20 | R29: $0 | S29: 0.49 | T29: $0 | U29: $805,145 | V29: $2,009,054
A30: 2046 | B30: 24 | C30: ='VHT Savings'!D36 -> $2,642,972 | D30: ='Vehicle Operating Cost Savings'!D37 -> $1,464,765 | E30: ='Crash Costs Summary'!K35 -> $0 | H30: $4,107,737 | I30: 0.18 | J30: $756,847 | K30: 0.48 | L30: $1,961,878 | N30: $0 | Q30: 0.18 | R30: $0 | S30: 0.48 | T30: $0 | U30: $756,847 | V30: $1,961,878
A31: 2047 | B31: 25 | C31: ='VHT Savings'!D37 -> $2,658,249 | D31: ='Vehicle Operating Cost Savings'!D38 -> $1,473,232 | E31: ='Crash Costs Summary'!K36 -> $0 | H31: $4,131,481 | I31: 0.17 | J31: $711,422 | K31: 0.46 | L31: $1,915,746 | N31: $0 | Q31: 0.17 | R31: $0 | S31: 0.46 | T31: $0 | U31: $711,422 | V31: $1,915,746
A32: 2048 | B32: 26 | C32: ='VHT Savings'!D38 -> $2,673,526 | D32: ='Vehicle Operating Cost Savings'!D39 -> $1,481,699 | E32: ='Crash Costs Summary'!K37 -> $0 | H32: $4,155,225 | I32: 0.16 | J32: $668,702 | K32: 0.45 | L32: $1,870,637 | N32: $0 | Q32: 0.16 | R32: $0 | S32: 0.45 | T32: $0 | U32: $668,702 | V32: $1,870,637
A33: 2049 | B33: 27 | C33: ='VHT Savings'!D39 -> $2,688,803 | D33: ='Vehicle Operating Cost Savings'!D40 -> $1,490,166 | E33: ='Crash Costs Summary'!K38 -> $0 | H33: $4,178,969 | I33: 0.15 | J33: $628,526 | K33: 0.44 | L33: $1,826,530 | N33: $0 | Q33: 0.15 | R33: $0 | S33: 0.44 | T33: $0 | U33: $628,526 | V33: $1,826,530
A34: 2050 | B34: 28 | C34: ='VHT Savings'!D40 -> $2,704,081 | D34: ='Vehicle Operating Cost Savings'!D41 -> $1,498,632 | E34: ='Crash Costs Summary'!K39 -> $0 | H34: $4,202,713 | I34: 0.14 | J34: $590,745 | K34: 0.42 | L34: $1,783,406 | N34: $0 | Q34: 0.14 | R34: $0 | S34: 0.42 | T34: $0 | U34: $590,745 | V34: $1,783,406
A35: 2051 | B35: 29 | C35: ='VHT Savings'!D41 -> $2,719,358 | D35: ='Vehicle Operating Cost Savings'!D42 -> $1,507,099 | E35: ='Crash Costs Summary'!K40 -> $0 | H35: $4,226,457 | I35: 0.13 | J35: $555,218 | K35: 0.41 | L35: $1,741,244 | N35: $0 | Q35: 0.13 | R35: $0 | S35: 0.41 | T35: $0 | U35: $555,218 | V35: $1,741,244
A36: 2052 | B36: 30 | C36: ='VHT Savings'!D42 -> $2,734,635 | D36: ='Vehicle Operating Cost Savings'!D43 -> $1,515,566 | E36: ='Crash Costs Summary'!K41 -> $0 | H36: $4,250,201 | I36: 0.12 | J36: $521,810 | K36: 0.40 | L36: $1,700,026 | N36: $0 | Q36: 0.12 | R36: $0 | S36: 0.40 | T36: $0 | U36: $521,810 | V36: $1,700,026
A37: 2053 | B37: 31 | C37: ='VHT Savings'!D43 -> $2,749,913 | D37: ='Vehicle Operating Cost Savings'!D44 -> $1,524,033 | E37: ='Crash Costs Summary'!K42 -> $0 | H37: $4,273,946 | I37: 0.11 | J37: $490,397 | K37: 0.39 | L37: =K37*H37 -> $1,659,731 | N37: $0 | Q37: 0.11 | R37: =Q37*P37 -> $0 | S37: 0.39 | T37: =S37*N37 -> $0 | U37: =J37-R37 -> $490,397 | V37: =L37-T37 -> $1,659,731
A38: 2054 | B38: 32 | C38: ='VHT Savings'!D44 -> $2,765,190 | D38: ='Vehicle Operating Cost Savings'!D45 -> $1,532,500 | E38: ='Crash Costs Summary'!K43 -> $0 | H38: $4,297,690 | I38: 0.11 | J38: $460,861 | K38: 0.38 | L38: $1,620,342 | N38: $0 | Q38: 0.11 | R38: $0 | S38: 0.38 | T38: $0 | U38: =J38-R38 -> $460,861 | V38: $1,620,342
A39: 2055 | B39: 33 | C39: ='VHT Savings'!D45 -> $2,780,467 | D39: ='Vehicle Operating Cost Savings'!D46 -> $1,540,967 | E39: ='Crash Costs Summary'!K44 -> $0 | G39: ='Residual Bridge Value'!U37 -> $6,500,000 | H39: =C39+D39+E39+G39 -> $10,821,434 | I39: 0.10 | J39: =I39*H39 -> $1,084,517 | K39: 0.37 | L39: $3,961,131 | N39: $0 | Q39: 0.10 | R39: $0 | S39: 0.37 | T39: $0 | U39: $1,084,517 | V39: $3,961,131
B40: Totals | C40: =SUM(C7:C39) -> $67,327,026 | D40: =SUM(D7:D39) -> $37,313,409 | E40: $0 | F40: =SUM(F7:F39) -> $350,000 | G40: $6,500,000 | H40: $111,490,435 | J40: =SUM(J7:J39) -> $28,011,610 | L40: =SUM(L7:L39) -> $58,926,206 | N40: =SUM(N7:N39) -> $10,590,000 | R40: =SUM(R7:R39) -> $7,814,792 | T40: =SUM(T7:T39) -> $9,272,052 | U40: =SUM(U7:U39) -> $20,196,818 | V40: =SUM(V7:V39) -> $49,654,154
N42: Notes
N43: 1. Based on Final Estimates ($2021) dated June 2022
N44: 2. The dollar amount used is a conservative estimate based on the Worcester BF 0241(59) Scoping Report.
N48: Benefit Cost Ratio
N49: Real Dollars | P49: =H40/N40 -> 10.53
N50: 7% Discount Rate | P50: =J40/R40 -> 3.58

Sheet Funding Assumptions
A2: McFARLAND JOHNSON | R2: JOB | T2: ELMORE-WORCESTER BCA - PROTECT
A3: Engineering, Planning & Construction Administration | R3: SHEET NO. | V3: =_xlfn.SHEET()-1 -> 1 | Z3: OF | AB3: =_xlfn.SHEETS()-2 -> 10
A4: www.mjinc.com | R4: CALCULATED BY | V4: SRL | Z4: DATE | AB4: 2023-07-07
R5: CHECKED BY | V5: BRC | Z5: DATE | AB5: 2023-07-11
R6: PROJECT NO. | V6: 18683.06 | Z6: SCALE | AB6: N.T.S.
D9: PROJECT FUNDING ASSUMPTIONS
AN11: Culvert | AO11: Selected Alternative | AQ11: Scoping Report Cost | AR11: Final Estimate Cost
D12: Begin Design Year | K12: = | L12: 2023 | U12: Final Design Costs | Z12: =L19*0 -> 0 | AN12: Elmore BF 0241(55) | AO12: 2B | AP12: Temp. Bridge | AQ12: $1,809,224.00 | AR12: $999,854.23
D13: End Design Year | K13: = | L13: 2024 | U13: ROW Costs | Z13: 0 | AN13: WORCESTER BF 0241(56) | AO13: 2C | AP13: Temp. Bridge | AQ13: $2,355,374.00 | AR13: $1,474,395.17
D14: Pre-Construction Costs | K14: = | L14: =SUM(Z12:AD15) -> 0 | U14: Mitigation Costs | Z14: 0 | AN14: Worcester BF 0241(57) | AO14: 3C | AP14: Temp. Bridge | AQ14: $3,103,203.00 | AR14: $3,245,376.22
D15: PE/ROW Costs Per Year | K15: = | L15: =L14/((L13-L12)+1) -> 0 | U15: Utility Reloc. Costs | Z15: 0 | AN15: Worcester BF 0241(59) | AO15: 4B | AP15: Temp. Bridge | AQ15: $2,371,303.00 | AR15: $2,306,176.65
AN16: Elmore STP CULV (64) | AP16: Temp. Bridge | AQ16: $3,296,650.00 | AR16: $2,563,442.91
D17: Begin Construction Year | K17: = | L17: 2025
D18: End Construction Year | K18: = | L18: 2026 | AP18: Total | AQ18: $12,935,754.00 | AR18: $10,589,245.18
D19: Construction Costs | K19: = | L19: =ROUNDUP(AR18,-3) -> $10,590,000
D20: Construction Costs Per Year | K20: = | L20: =L19/((L18-L17)+1) -> $5,295,000.00
D22: Project Opening Year | K22: = | L22: 2026
D24: Analysis Periond | K24: = | L24: 30 Years
D26: End Analysis Year Year | K26: = | L26: =L22+L24 -> 2056 Years
D28: Calendar Year | G28: Project Year1 | J28: Design Costs | O28: Construction Costs | T28: Total Project Costs
D30: 2023 | G30: 1 | J30: =$L$15 -> 0 | T30: =J30+O30 -> 0
D31: =1+D30:D30 -> 2024 | G31: =G30+1 -> 2 | J31: =$L$15 -> 0 | T31: =J31+O31 -> 0
D32: 2025 | G32: 3 | O32: =$L$20 -> $5,295,000.00 | T32: $5,295,000.00
D33: 2026 | G33: 4 | O33: $5,295,000.00 | T33: $5,295,000.00
D34: 2027 | G34: 5 | T34: 0
D35: 2028 | G35: 6 | T35: 0
D36: 2029 | G36: 7 | T36: 0
D37: 2030 | G37: 8 | T37: 0
D38: 2031 | G38: 9 | T38: 0
D39: 2032 | G39: 10 | T39: 0
D40: 2033 | G40: 11 | T40: 0
D41: 2034 | G41: 12 | T41: 0
D42: 2035 | G42: 13 | T42: 0
D43: 2036 | G43: 14 | T43: 0

Sheet Residual Bridge Value
A2: McFARLAND JOHNSON | R2: JOB | T2: ELMORE-WORCESTER BCA - PROTECT
A3: Engineering, Planning & Construction Administration | R3: SHEET NO. | V3: =_xlfn.SHEET()-1 -> 2 | Z3: OF | AB3: =_xlfn.SHEETS()-2 -> 10
A4: www.mjinc.com | R4: CALCULATED BY | V4: SRL | Z4: DATE | AB4: 2023-07-07
R5: CHECKED BY | V5: BRC | Z5: DATE | AB5: 2023-07-11
R6: PROJECT NO. | V6: 18683.06 | Z6: SCALE | AB6: N.T.S.
D9: RESIDUAL BRIDGE VALUE
J12: Estimated Cost of Bridge | U12: ='Funding Assumptions'!L19 -> $10,590,000.00
J14: Estimated Cost of Design | U14: ='Funding Assumptions'!L14 -> 0
T25: Total Estimated Project Cost ($2026) = | U25: =SUM(U12:Y20) -> $10,590,000.00
T31: Service Life of Bridge = | U31: 75 Years
T33: Bridge Opening Year = | U33: 2026
T35: End of Analysis Year = | U35: 2055
T37: Residual Value at End of Analysis Year ($2021)= | U37: =ROUND(((U31-(U35-U33))/U31)*U25,-5) -> $6,500,000
T38: (rounded to nearest 100,000)

Sheet Vehicle Operating Cost Savings
A2: McFARLAND JOHNSON | M2: JOB | N2: ELMORE-WORCESTER BCA - PROTECT | T2: Essex BCA - RAISE
A3: Engineering, Planning & Construction Administration | M3: SHEET NO. | N3: =_xlfn.SHEET()-1 -> 3 | O3: OF | P3: =_xlfn.SHEETS()-2 -> 10
A4: www.mjinc.com | M4: CALCULATED BY | N4: SRL | O4: DATE | P4: 2023-07-11
M5: CHECKED BY | N5: BRC | O5: DATE | P5: 2023-07-11
M6: PROJECT NO. | N6: 18683.06 | O6: SCALE | P6: N.T.S.
A8: Value of Vehicle Operating Costs Savings
A10: Calendar Year | B10: Project Year | C10: Average Annual VMT (Compared to NO BUILD) | D10: Value of O&M Saved ($2021) | H10: DAILY VALUES | K10: ANNUAL VALUES
H11: NO BUILD | I11: 100% CLOSURE | J11: 100% CLOSURE | K11: NO BUILD | L11: 100% CLOSURE | M11: 100% CLOSURE
H12: 2030 | I12: 2030 | J12: 2043 | K12: =H12 -> 2030 | L12: =I12 -> 2030 | M12: 2043
A13: 2022 | B13: 0 | C13: 0 | D13: $0 | G13: VMT (miles) | H13: =I39*P24 -> 41,134 | I13: =I40*P24 -> 48,513 | J13: =I40*P37 -> 52,530 | K13: =365*H13 -> 15,013,910 | L13: =365*I13 -> 17,707,245 | M13: =365*J13 -> 19,173,450
A14: =1+A13:A13 -> 2023 | B14: =B13+1 -> 1 | C14: 0 | D14: $0 | G14: Change in VMT | H14: 0 | I14: =I13-H13 -> 7,379 | J14: =N40-N39 -> 7,990 | K14: =365*H14 -> 0 | L14: =365*I14 -> 2,693,335 | M14: =365*J14 -> 2,916,350
A15: 2024 | B15: 2 | C15: 0 | D15: $0 | G15: O&M Light Duty | H15: =H14*$H$27*$H$21 -> 0 | I15: =I14*$H$27*$H$21 -> $3,187.29 | J15: =J14*H27*H21 -> $3,451.20 | K15: 0 | L15: =365*I15 -> $1,163,359.12 | M15: =365*J15 -> $1,259,688.22
A16: 2025 | B16: 3 | C16: 0 | D16: $0 | G16: O&M Commercial | H16: =H14*$H$22*$H$26 -> 0 | I16: =I14*$H$22*$H$26 -> $454.62 | J16: =J14*H26*H22 -> $492.26 | K16: 0 | L16: $165,936.37 | M16: $179,676.32 | O16: YEAR | P16: AADT
A17: =1+A16:A16 -> 2026 | B17: 4 | C17: 0 | D17: $0 | G17: Total | H17: =SUM(H15:H16) -> 0 | I17: =SUM(I15:I16) -> $3,641.91 | J17: =SUM(J15:J16) -> $3,943.46 | K17: 0 | L17: =SUM(L15:L16) -> $1,329,295.49 | M17: =SUM(M15:M16) -> $1,439,364.54 | O17: 2023 | P17: 1500
A18: 2027 | B18: 5 | C18: 0 | D18: $0 | O18: 2024 | P18: =P17+10 -> 1510
A19: 2028 | B19: 6 | C19: 0 | D19: $0 | O19: 2025 | P19: =P18+10 -> 1520
A20: 2029 | B20: 7 | C20: 0 | D20: $0 | O20: 2026 | P20: 1530
A21: 2030 | B21: 8 | C21: =(I$40-I$39)*P24*H$30 -> 2,693,335 | D21: =(C21*$H$27*$H$21)+(C21*$H$22*$H$26) -> $1,329,295 | E21: 100% CLOSURE PERIOD | G21: Light Duty | H21: $0.46 | I21: Table A-5 - Value of Travel Time Savings - USDOT Benefit-Cost Analysis Guidance for Discretionary Grant Programs | O21: 2027 | P21: 1540
A22: 2031 | B22: 9 | C22: 2,710,490 | D22: =(C22*$H$27*$H$21)+(C22*$H$22*$H$26) -> $1,337,762 | G22: Commercial Duty | H22: $1.01 | I22: Table A-5 - Value of Travel Time Savings - USDOT Benefit-Cost Analysis Guidance for Discretionary Grant Programs, Note 2 | O22: 2028 | P22: 1550
A23: 2032 | B23: 10 | C23: 2,727,645 | D23: $1,346,229 | O23: 2029 | P23: 1560
A24: 2033 | B24: 11 | C24: 2,744,800 | D24: $1,354,696 | O24: 2030 | P24: 1570
A25: 2034 | B25: 12 | C25: 2,761,955 | D25: $1,363,163 | O25: 2031 | P25: 1580
A26: 2035 | B26: 13 | C26: 2,779,110 | D26: $1,371,630 | G26: Assuming | H26: ='Travel Times Savings'!C38 -> 6% | I26: ='Travel Times Savings'!D38 -> Trucks (Per Scoping Study) | O26: 2032 | P26: 1590
A27: 2036 | B27: 14 | C27: 2,796,265 | D27: $1,380,097 | H27: ='Travel Times Savings'!C39 -> 94% | I27: ='Travel Times Savings'!D39 -> Passenger Vehicles | O27: 2033 | P27: 1600
A28: 2037 | B28: 15 | C28: 2,813,420 | D28: $1,388,563 | O28: 2034 | P28: 1610
A29: 2038 | B29: 16 | C29: 2,830,575 | D29: $1,397,030 | O29: 2035 | P29: 1620
A30: 2039 | B30: 17 | C30: 2,847,730 | D30: $1,405,497 | G30: Closure Days | H30: 365 | O30: 2036 | P30: 1630
A31: 2040 | B31: 18 | C31: 2,864,885 | D31: $1,413,964 | O31: 2037 | P31: 1640
A32: 2041 | B32: 19 | C32: 2,882,040 | D32: $1,422,431 | O32: 2038 | P32: 1650
A33: 2042 | B33: 20 | C33: 2,899,195 | D33: $1,430,898 | O33: 2039 | P33: 1660
A34: 2043 | B34: 21 | C34: 2,916,350 | D34: $1,439,365 | O34: 2040 | P34: 1670
A35: 2044 | B35: 22 | C35: 2,933,505 | D35: $1,447,831 | O35: 2041 | P35: 1680
A36: 2045 | B36: 23 | C36: 2,950,660 | D36: $1,456,298 | O36: 2042 | P36: 1690
A37: 2046 | B37: 24 | C37: 2,967,815 | D37: $1,464,765 | O37: 2043 | P37: 1700
A38: 2047 | B38: 25 | C38: 2,984,970 | D38: $1,473,232 | I38: Miles | J38: Minutes | K38: AADT (2023) | L38: VMT (2023) | M38: AADT (2043) | N38: VMT (2043) | O38: 2044 | P38: 1710
A39: 2048 | B39: 26 | C39: 3,002,125 | D39: $1,481,699 | H39: Non-closure Distance | I39: 26.20 | J39: 34.00 | K39: 1500 | L39: =K39*I39 -> 39300 | M39: 1700 | N39: =M39*I39 -> 44540 | O39: 2045 | P39: 1720
A40: 2049 | B40: 27 | C40: 3,019,280 | D40: $1,490,166 | H40: Detour (Full Closure) | I40: 30.90 | J40: 42.00 | K40: 1500 | L40: =K40*I40 -> 46350 | M40: 1700 | N40: =M40*I40 -> 52530 | O40: 2046 | P40: 1730
A41: =1+A40:A40 -> 2050 | B41: 28 | C41: 3,036,435 | D41: $1,498,632 | O41: 2047 | P41: 1740
A42: 2051 | B42: 29 | C42: 3,053,590 | D42: $1,507,099 | O42: 2048 | P42: 1750
A43: 2052 | B43: 30 | C43: 3,070,745 | D43: $1,515,566 | O43: 2049 | P43: 1760
A44: 2053 | B44: 31 | C44: 3,087,900 | D44: $1,524,033 | O44: 2050 | P44: 1770
A45: 2054 | B45: 32 | C45: 3,105,055 | D45: $1,532,500 | O45: 2051 | P45: 1780
A46: 2055 | B46: 33 | C46: 3,122,210 | D46: $1,540,967 | O46: 2052 | P46: 1790
D47: =SUM(D13:D46) -> $37,313,409 | O47: 2053 | P47: 1800
O48: 2054 | P48: 1810
O49: 2055 | P49: 1820

Sheet Travel Times Savings
A2: McFARLAND JOHNSON | J2: JOB | K2: ELMORE-WORCESTER BCA - PROTECT
A3: Engineering, Planning & Construction Administration | J3: SHEET NO. | K3: =_xlfn.SHEET()-1 -> 4 | L3: OF | M3: =_xlfn.SHEETS()-2 -> 10
A4: www.mjinc.com | J4: CALCULATED BY | K4: SRL | L4: DATE | M4: 2023-07-11
J5: CHECKED BY | K5: BRC | L5: DATE | M5: 2023-07-11
J6: PROJECT NO. | K6: 18683.06 | L6: SCALE | M6: N.T.S.
A8: DETERMINE VALUE OF BENEFIT OF LESS TRAVEL TIME THROUGH CORRIDOR
D11: TRAVEL TIME SAVINGS = | E11: ='VHT Savings'!J15 -> 226.67 | F11: DAILY VEHICLE HOURS DURING 2043 100% CLOSURE
E14: 365 | F14: CLOSURE DAYS PER YEAR
D16: TOTAL TRAVEL TIMES SAVINGS = | E16: =E14*E11 -> 82,733.33 | F16: VEHICLE HOURS SAVED DURING 2043 100% CLOSURE
B19: Recommended Hourly Values of Travel Time Savings (Per Person-Hour) 1 | E19: Sources:
E20: (1) | F20: Table A-3 - Value of Travel Time Savings - USDOT Benefit-Cost Analysis Guidance for Discretionary Grant Programs
B21: Category | D21: ($2021) | E21: (2) | F21: Table A-3 - Value of Travel Time Savings - USDOT Benefit-Cost Analysis Guidance for Discretionary Grant Programs, Note 2
B22: Private Vehicle | E22: (3) | F22: Table A-4 - Average Vehicle Occupancy - USDOT Benefit-Cost Analysis Guidance for Discretionary Grant Programs
B23: Personal | D23: $17.00
B24: Business | D24: $31.90
B26: Commercial Vehicle
B27: Truck Driver | D27: $32.40
B29: Estimated Percentage of Personal and Business Travel 2
B30: Business | D30: 11.80%
B31: Personal | D31: 88.20%
B33: Average Vehicle Occupancy 3
B34: Passenger Vehicle | D34: 1.67
B35: Trucks | D35: 1.00
B38: Assuming | C38: 6% | D38: Trucks (Per Scoping Study)
C39: =1-C38 -> 94% | D39: Passenger Vehicles
D40: =D30 -> 11.80% | E40: Business Passenger Vehicles
D41: =D31 -> 88.20% | E41: Personal Passenger Vehicles
D43: Weighted Cost of Truck = | E43: % Trucks x Truck Driver Rate x Vehicle Occupancy
D44: = | E44: =C38*D27*D35 -> $1.98
D46: Weighted Cost of Business Passenger Vehicle = | E46: % Business Passenger Vehicle x Business Passenger Vehicle Rate x Vehicle Occupancy
D47: = | E47: =D40*D24*D34*C39 -> $5.90
D49: Weighted Cost of Personal Passenger Vehicle = | E49: % Personal Passenger Vehicle x Personal Passenger Vehicle Rate x Vehicle Occupancy
D50: = | E50: =D41*D23*D34*C39 -> $23.51
D52: Total Weighted Averages per Vehicle = | E52: Weighted Cost of Truck + Weighted Cost of Business Passenger Vehicle + Weighted Cost of Personal Passenger Vehicle
D53: = | E53: =SUM(E44+E47+E50) -> $31.39
B57: TOTAL ANNUAL SAVINGS OF TRAVEL TIME COSTS YEAR 2043 100% CLOSURE = | E57: =E53*E16 -> $2,597,139.66 | F57: IN 2021 DOLLARS

Sheet VHT Savings
A2: McFARLAND JOHNSON | M2: JOB | N2: ELMORE-WORCESTER BCA - PROTECT
A3: Engineering, Planning & Construction Administration | M3: SHEET NO. | N3: =_xlfn.SHEET()-1 -> 5 | O3: OF | P3: =_xlfn.SHEETS()-2 -> 10
A4: www.mjinc.com | M4: CALCULATED BY | N4: SRL | O4: DATE | P4: 2023-07-11
M5: CHECKED BY | N5: BRC | O5: DATE | P5: 2023-07-11
M6: PROJECT NO. | N6: 18683.06 | O6: SCALE | P6: N.T.S.
A8: Value of VHT Savings
A10: Calendar Year | B10: Project Year | C10: VEHICLE HOURS SAVED (Compared to NO BUILD) | D10: Value of Time Savings ($2021) | H10: DAILY VALUES | K10: ANNUAL VALUES
H11: NO BUILD | I11: 100% CLOSURE | J11: 100% CLOSURE | K11: NO BUILD | L11: 100% CLOSURE | M11: 100% CLOSURE
H12: 2030 | I12: 2030 | J12: 2043 | K12: =H12 -> 2030 | L12: =I12 -> 2030 | M12: 2043 | O12: YEAR | P12: AADT
A13: 2023 | B13: 0 | C13: 0 | D13: =$D$25*C13 -> $0 | G13: VHT (hours) | H13: =I39*P20 -> 890 | I13: =I40*P20 -> 1,099 | J13: =I40*L40 -> 1,190 | K13: =$H$24*H13 -> 324,728 | L13: =$H$24*I13 -> 401,135 | M13: =$H$24*J13 -> 434,350 | O13: 2023 | P13: 1500
A14: =1+A13:A13 -> 2024 | B14: =B13+1 -> 1 | C14: 0 | D14: =$D$25*C14 -> $0 | G14: VMT (miles) | H14: =K39 -> 41,134 | I14: =K40 -> 48,513 | J14: =M40 -> 52,530 | K14: =$H$24*H14 -> 15,013,910 | L14: 17,707,245 | M14: 19,173,450 | O14: 2024 | P14: =P13+10 -> 1510
A15: =1+A14:A14 -> 2025 | B15: =B14+1 -> 2 | C15: 0 | D15: =$D$25*C15 -> $0 | G15: Change in VHT | H15: 0 | I15: =I13-H13 -> 209 | J15: =N40-N39 -> 227 | K15: 0 | L15: =$H$24*I15 -> 76,407 | M15: =$H$24*J15 -> 82,733 | O15: 2025 | P15: =P14+10 -> 1520
A16: 2026 | B16: 3 | C16: 0 | D16: =$D$25*C16 -> $0 | G16: Change in VMT | H16: 0 | I16: =I14-H14 -> 7,379 | J16: =M40-M39 -> 7,990 | K16: 0 | L16: 2,693,335 | M16: 2,916,350 | O16: 2026 | P16: 1530
A17: =1+A16:A16 -> 2027 | B17: 4 | C17: 0 | D17: =$D$25*C17 -> $0 | O17: 2027 | P17: 1540
A18: 2028 | B18: 5 | C18: 0 | D18: $0 | O18: 2028 | P18: 1550
A19: 2029 | B19: 6 | C19: 0 | D19: $0 | O19: 2029 | P19: 1560
A20: 2030 | B20: 7 | C20: =(I$40-I$39)*H$24*P20 -> 76,407 | D20: =C20*'Travel Times Savings'!E$53 -> $2,398,535 | E20: 100% CLOSURE PERIOD | G20: Daily Values are multiplied by 365 to arrive at annual values. | O20: 2030 | P20: 1570
A21: 2031 | B21: 8 | C21: =(I$40-I$39)*H$24*P21 -> 76,893 | D21: =C21*'Travel Times Savings'!E$53 -> $2,413,812 | O21: 2031 | P21: 1580
A22: 2032 | B22: 9 | C22: 77,380 | D22: =C22*'Travel Times Savings'!E$53 -> $2,429,089 | O22: 2032 | P22: 1590
A23: 2033 | B23: 10 | C23: 77,867 | D23: =C23*'Travel Times Savings'!E$53 -> $2,444,367 | O23: 2033 | P23: 1600
A24: 2034 | B24: 11 | C24: 78,353 | D24: =C24*'Travel Times Savings'!E$53 -> $2,459,644 | G24: Closure Days | H24: 365 | O24: 2034 | P24: 1610
A25: 2035 | B25: 12 | C25: 78,840 | D25: =C25*'Travel Times Savings'!E$53 -> $2,474,921 | O25: 2035 | P25: 1620
A26: 2036 | B26: 13 | C26: 79,327 | D26: =C26*'Travel Times Savings'!E$53 -> $2,490,199 | O26: 2036 | P26: 1630
A27: 2037 | B27: 14 | C27: 79,813 | D27: =C27*'Travel Times Savings'!E$53 -> $2,505,476 | O27: 2037 | P27: 1640
A28: 2038 | B28: 15 | C28: 80,300 | D28: =C28*'Travel Times Savings'!E$53 -> $2,520,753 | O28: 2038 | P28: 1650
A29: 2039 | B29: 16 | C29: 80,787 | D29: =C29*'Travel Times Savings'!E$53 -> $2,536,030 | O29: 2039 | P29: 1660
A30: 2040 | B30: 17 | C30: 81,273 | D30: =C30*'Travel Times Savings'!E$53 -> $2,551,308 | O30: 2040 | P30: 1670
A31: 2041 | B31: 18 | C31: 81,760 | D31: =C31*'Travel Times Savings'!E$53 -> $2,566,585 | O31: 2041 | P31: 1680
A32: 2042 | B32: 19 | C32: 82,247 | D32: =C32*'Travel Times Savings'!E$53 -> $2,581,862 | O32: 2042 | P32: 1690
A33: 2043 | B33: 20 | C33: 82,733 | D33: =C33*'Travel Times Savings'!E$53 -> $2,597,140 | O33: 2043 | P33: 1700
A34: 2044 | B34: 21 | C34: 83,220 | D34: =C34*'Travel Times Savings'!E$53 -> $2,612,417 | O34: 2044 | P34: 1710
A35: 2045 | B35: 22 | C35: 83,707 | D35: =C35*'Travel Times Savings'!E$53 -> $2,627,694 | O35: 2045 | P35: 1720
A36: 2046 | B36: 23 | C36: 84,193 | D36: =C36*'Travel Times Savings'!E$53 -> $2,642,972 | O36: 2046 | P36: 1730
A37: 2047 | B37: 24 | C37: 84,680 | D37: =C37*'Travel Times Savings'!E$53 -> $2,658,249 | O37: 2047 | P37: 1740
A38: 2048 | B38: 25 | C38: 85,167 | D38: =C38*'Travel Times Savings'!E$53 -> $2,673,526 | G38: Miles | H38: Minutes | I38: Hours | J38: AADT (2023) | K38: VMT (2030) | L38: AADT (2043) | M38: VMT (2043) | N38: VHT (2043) | O38: 2048 | P38: 1750
A39: 2049 | B39: 26 | C39: 85,653 | D39: =C39*'Travel Times Savings'!E$53 -> $2,688,803 | F39: Non-closure Distance | G39: 26.20 | H39: 34.00 | I39: =H39/60 -> 0.57 | J39: 1500 | K39: =G39*P20 -> 41134 | L39: 1700 | M39: =L39*G39 -> 44540 | N39: =L39*I39 -> 963.3 | O39: 2049 | P39: 1760
A40: 2050 | B40: 27 | C40: 86,140 | D40: =C40*'Travel Times Savings'!E$53 -> $2,704,081 | F40: Detour (Full Closure) | G40: 30.90 | H40: 42.00 | I40: =H40/60 -> 0.70 | J40: 1500 | K40: =G40*P20 -> 48513 | L40: 1700 | M40: =L40*G40 -> 52530 | N40: =L40*I40 -> 1190.0 | O40: 2050 | P40: 1770
A41: 2051 | B41: 28 | C41: 86,627 | D41: =C41*'Travel Times Savings'!E$53 -> $2,719,358 | O41: 2051 | P41: 1780
A42: 2052 | B42: 29 | C42: 87,113 | D42: =C42*'Travel Times Savings'!E$53 -> $2,734,635 | O42: 2052 | P42: 1790
A43: 2053 | B43: 30 | C43: 87,600 | D43: =C43*'Travel Times Savings'!E$53 -> $2,749,913 | O43: 2053 | P43: 1800
A44: 2054 | B44: 31 | C44: 88,087 | D44: =C44*'Travel Times Savings'!E$53 -> $2,765,190 | O44: 2054 | P44: 1810
A45: 2055 | B45: 32 | C45: 88,573 | D45: =C45*'Travel Times Savings'!E$53 -> $2,780,467 | O45: 2055 | P45: 1820
D46: =SUM(D13:D45) -> $67,327,026

Sheet Report Charts
P1: $685,025 | Q1: =SUM(P1:P3) -> $1,923,562
P2: $640,210
B3: CATEGORY | C3: $2021 Benefit-Cost (Discounted 7%) | P3: $598,327
B4: Time Savings Benefit | C4: =H74 -> $17,441,866 | P4: $5,769,764 | Q4: =SUM(P4:P5) -> $11,162,068
B5: Vehicle Operating Costs Benefit | C5: =I74 -> $9,666,482 | P5: $5,392,303
B6: Crash Reduction Benefit | C6: =J74 -> $251,836
B7: Residual Value Benefit | C7: =K74 -> $651,426
B8: Total Benefit | C8: =SUM(C4:C7) -> $28,011,610
B9: Design/Engineering/ROW Cost | C9: =SUM('Benefits-Cost Summary'!R7:R8) -> 0
B10: Construction Cost | C10: =SUM('Benefits-Cost Summary'!R9:R10) -> $7,814,792
B11: Total Cost | C11: =SUM(C9:C10) -> $7,814,792
B12: Benefit-Cost Ratio | C12: ='Benefits-Cost Summary'!P50 -> 3.58
B15: CATEGORY | C15: Estimated Project Costs ($2021) | E15: Values in this table have not been updated at this time. Values to be updated as the BCA progresses.
B16: Proposed Structures Cost Including:
B17: Removal of Structure
B18: Roadway Costs
B19: Maintenance of Traffic Costs
B20: Total Construction Costs ($2021) | C20: ='Funding Assumptions'!L19 -> $10,590,000.00
B22: Table 9: Daily Metrics
B23: Vermont Route 12 Daily Metrics | C23: No Build | D23: Full Bridge Closure (2023) | E23: Full Bridge Closure (2024)
B24: Vehicle Miles Traveled (VMT) | C24: ='VHT Savings'!H14 -> 41,134 | D24: ='VHT Savings'!I14 -> 48,513 | E24: ='VHT Savings'!J14 -> 52,530
B25: Vehicle Hours Traveled (VHT) | C25: ='VHT Savings'!H13 -> 890 | D25: ='VHT Savings'!I13 -> 1,099 | E25: ='VHT Savings'!J13 -> 1,190
B26: Change in Delay vs No Build (Hours) | C26: ='VHT Savings'!H15 -> 0 | D26: ='VHT Savings'!I15 -> 209 | E26: ='VHT Savings'!J15 -> 227
B27: Change in VMT vs No Build (Miles) | C27: ='VHT Savings'!H16 -> 0 | D27: ='VHT Savings'!I16 -> 7,379 | E27: ='VHT Savings'!J16 -> 7,990
B30: CMF ID Number & Description | C30: CMF | D30: Crash Types (Severity) | E30: Area Type
B31: CMF 8712: Roadway with Narrow Shoulders | C31: 0.93 | D31: All (KABCO) | E31: Urban
B32: CMF 3936: Increase Lane Width | C32: 0.72 | D32: All (KABCO) | E32: Urban
B33: KABCO - BCA Guidance Table A-1
C39: Real Cost | H39: Discounted Cost
B40: Year | C40: ='Benefits-Cost Summary'!C6 -> Value of Time Savings ($2021) | D40: ='Benefits-Cost Summary'!D6 -> Value of O&M Saved ($2021) | E40: ='Benefits-Cost Summary'!E6 -> Avoided Future Construction Costs ($2021) | F40: ='Benefits-Cost Summary'!G6 -> Residual Value of New Bridge ($2021) | G40: Discounting | H40: Value of Time Savings ($2021) | I40: Value of O&M Saved ($2021) | J40: =E40 -> Avoided Future Construction Costs ($2021) | K40: Residual Value of New Bridge ($2021)
B41: ='Benefits-Cost Summary'!A7 -> 2023 | C41: ='Benefits-Cost Summary'!C7 -> $0.00 | D41: ='Benefits-Cost Summary'!D7 -> $0.00 | E41: ='Benefits-Cost Summary'!F7 -> $50,000.00 | F41: ='Benefits-Cost Summary'!G7 -> 0 | G41: ='Benefits-Cost Summary'!I7 -> 0.87 | H41: =C41*$G41 -> 0 | I41: =D41*$G41 -> 0 | J41: =E41*$G41 -> $43,671.94 | K41: =F41*$G41 -> 0
B42: ='Benefits-Cost Summary'!A8 -> 2024 | C42: ='Benefits-Cost Summary'!C8 -> $0.00 | D42: ='Benefits-Cost Summary'!D8 -> $0.00 | E42: ='Benefits-Cost Summary'!F8 -> $50,000.00 | F42: ='Benefits-Cost Summary'!G8 -> 0 | G42: ='Benefits-Cost Summary'!I8 -> 0.82 | H42: =C42*$G42 -> 0 | I42: 0 | J42: =E42*$G42 -> $40,814.89 | K42: 0
B43: ='Benefits-Cost Summary'!A9 -> 2025 | C43: ='Benefits-Cost Summary'!C9 -> $0.00 | D43: ='Benefits-Cost Summary'!D9 -> $0.00 | E43: ='Benefits-Cost Summary'!F9 -> $50,000.00 | F43: ='Benefits-Cost Summary'!G9 -> 0 | G43: ='Benefits-Cost Summary'!I9 -> 0.76 | H43: 0 | I43: 0 | J43: $38,144.76 | K43: 0
B44: ='Benefits-Cost Summary'!A10 -> 2026 | C44: ='Benefits-Cost Summary'!C10 -> $0.00 | D44: ='Benefits-Cost Summary'!D10 -> $0.00 | E44: ='Benefits-Cost Summary'!F10 -> $50,000.00 | F44: ='Benefits-Cost Summary'!G10 -> 0 | G44: ='Benefits-Cost Summary'!I10 -> 0.71 | H44: 0 | I44: 0 | J44: $35,649.31 | K44: 0
B45: ='Benefits-Cost Summary'!A11 -> 2027 | C45: ='Benefits-Cost Summary'!C11 -> $0.00 | D45: ='Benefits-Cost Summary'!D11 -> $0.00 | E45: ='Benefits-Cost Summary'!F11 -> $50,000.00 | F45: ='Benefits-Cost Summary'!G11 -> 0 | G45: ='Benefits-Cost Summary'!I11 -> 0.67 | H45: 0 | I45: 0 | J45: $33,317.11 | K45: 0
B46: ='Benefits-Cost Summary'!A12 -> 2028 | C46: ='Benefits-Cost Summary'!C12 -> $0.00 | D46: ='Benefits-Cost Summary'!D12 -> $0.00 | E46: ='Benefits-Cost Summary'!F12 -> $50,000.00 | F46: ='Benefits-Cost Summary'!G12 -> 0 | G46: ='Benefits-Cost Summary'!I12 -> 0.62 | H46: 0 | I46: 0 | J46: $31,137.49 | K46: 0
B47: ='Benefits-Cost Summary'!A13 -> 2029 | C47: ='Benefits-Cost Summary'!C13 -> $0.00 | D47: ='Benefits-Cost Summary'!D13 -> $0.00 | E47: ='Benefits-Cost Summary'!F13 -> $50,000.00 | F47: ='Benefits-Cost Summary'!G13 -> 0 | G47: ='Benefits-Cost Summary'!I13 -> 0.58 | H47: 0 | I47: 0 | J47: $29,100.46 | K47: 0
B48: ='Benefits-Cost Summary'!A14 -> 2030 | C48: ='Benefits-Cost Summary'!C14 -> $2,398,534.87 | D48: ='Benefits-Cost Summary'!D14 -> $1,329,295.49 | E48: ='Benefits-Cost Summary'!F14 -> $0.00 | F48: ='Benefits-Cost Summary'!G14 -> 0 | G48: ='Benefits-Cost Summary'!I14 -> 0.54 | H48: $1,304,644.05 | I48: $723,048.67 | J48: 0 | K48: 0
B49: ='Benefits-Cost Summary'!A15 -> 2031 | C49: ='Benefits-Cost Summary'!C15 -> $2,413,812.16 | D49: ='Benefits-Cost Summary'!D15 -> $1,337,762.34 | E49: ='Benefits-Cost Summary'!F15 -> $0.00 | F49: ='Benefits-Cost Summary'!G15 -> 0 | G49: ='Benefits-Cost Summary'!I15 -> 0.51 | H49: $1,227,059.70 | I49: $680,050.54 | J49: 0 | K49: 0
B50: ='Benefits-Cost Summary'!A16 -> 2032 | C50: ='Benefits-Cost Summary'!C16 -> $2,429,089.45 | D50: ='Benefits-Cost Summary'!D16 -> $1,346,229.19 | E50: ='Benefits-Cost Summary'!F16 -> $0.00 | F50: ='Benefits-Cost Summary'!G16 -> 0 | G50: ='Benefits-Cost Summary'!I16 -> 0.48 | H50: $1,154,042.90 | I50: $639,583.79 | J50: 0 | K50: 0
B51: ='Benefits-Cost Summary'!A17 -> 2033 | C51: ='Benefits-Cost Summary'!C17 -> $2,444,366.74 | D51: ='Benefits-Cost Summary'!D17 -> $1,354,696.04 | E51: ='Benefits-Cost Summary'!F17 -> $0.00 | F51: ='Benefits-Cost Summary'!G17 -> 0 | G51: ='Benefits-Cost Summary'!I17 -> 0.44 | H51: $1,085,328.07 | I51: $601,501.24 | J51: 0 | K51: 0
B52: ='Benefits-Cost Summary'!A18 -> 2034 | C52: ='Benefits-Cost Summary'!C18 -> $2,459,644.03 | D52: ='Benefits-Cost Summary'!D18 -> $1,363,162.89 | E52: ='Benefits-Cost Summary'!F18 -> $0.00 | F52: ='Benefits-Cost Summary'!G18 -> 0 | G52: ='Benefits-Cost Summary'!I18 -> 0.41 | H52: $1,020,664.83 | I52: $565,664.14 | J52: 0 | K52: 0
B53: ='Benefits-Cost Summary'!A19 -> 2035 | C53: ='Benefits-Cost Summary'!C19 -> $2,474,921.33 | D53: ='Benefits-Cost Summary'!D19 -> $1,371,629.74 | E53: ='Benefits-Cost Summary'!F19 -> $0.00 | F53: ='Benefits-Cost Summary'!G19 -> 0 | G53: ='Benefits-Cost Summary'!I19 -> 0.39 | H53: $959,817.16 | I53: $531,941.66 | J53: 0 | K53: 0
B54: ='Benefits-Cost Summary'!A20 -> 2036 | C54: ='Benefits-Cost Summary'!C20 -> $2,490,198.62 | D54: ='Benefits-Cost Summary'!D20 -> $1,380,096.59 | E54: ='Benefits-Cost Summary'!F20 -> $0.00 | F54: ='Benefits-Cost Summary'!G20 -> 0 | G54: ='Benefits-Cost Summary'!I20 -> 0.36 | H54: $902,562.58 | I54: $500,210.52 | J54: 0 | K54: 0
B55: ='Benefits-Cost Summary'!A21 -> 2037 | C55: ='Benefits-Cost Summary'!C21 -> $2,505,475.91 | D55: ='Benefits-Cost Summary'!D21 -> $1,388,563.44 | E55: ='Benefits-Cost Summary'!F21 -> $0.00 | F55: ='Benefits-Cost Summary'!G21 -> 0 | G55: ='Benefits-Cost Summary'!I21 -> 0.34 | H55: $848,691.37 | I55: $470,354.48 | J55: 0 | K55: 0
B56: ='Benefits-Cost Summary'!A22 -> 2038 | C56: ='Benefits-Cost Summary'!C22 -> $2,520,753.20 | D56: ='Benefits-Cost Summary'!D22 -> $1,397,030.29 | E56: ='Benefits-Cost Summary'!F22 -> $0.00 | F56: ='Benefits-Cost Summary'!G22 -> 0 | G56: ='Benefits-Cost Summary'!I22 -> 0.32 | H56: $798,005.91 | I56: $442,264.01 | J56: 0 | K56: 0
B57: ='Benefits-Cost Summary'!A23 -> 2039 | C57: ='Benefits-Cost Summary'!C23 -> $2,536,030.49 | D57: ='Benefits-Cost Summary'!D23 -> $1,405,497.14 | E57: ='Benefits-Cost Summary'!F23 -> $0.00 | F57: ='Benefits-Cost Summary'!G23 -> 0 | G57: ='Benefits-Cost Summary'!I23 -> 0.30 | H57: $750,319.91 | I57: $415,835.89 | J57: 0 | K57: 0
B58: ='Benefits-Cost Summary'!A24 -> 2040 | C58: ='Benefits-Cost Summary'!C24 -> $2,551,307.79 | D58: ='Benefits-Cost Summary'!D24 -> $1,413,963.99 | E58: ='Benefits-Cost Summary'!F24 -> $0.00 | F58: ='Benefits-Cost Summary'!G24 -> 0 | G58: ='Benefits-Cost Summary'!I24 -> 0.28 | H58: $705,457.86 | I58: $390,972.83 | J58: 0 | K58: 0
B59: ='Benefits-Cost Summary'!A25 -> 2041 | C59: ='Benefits-Cost Summary'!C25 -> $2,566,585.08 | D59: ='Benefits-Cost Summary'!D25 -> $1,422,430.84 | E59: ='Benefits-Cost Summary'!F25 -> $0.00 | F59: ='Benefits-Cost Summary'!G25 -> 0 | G59: ='Benefits-Cost Summary'!I25 -> 0.26 | H59: $663,254.36 | I59: $367,583.16 | J59: 0 | K59: 0
B60: ='Benefits-Cost Summary'!A26 -> 2042 | C60: ='Benefits-Cost Summary'!C26 -> $2,581,862.37 | D60: ='Benefits-Cost Summary'!D26 -> $1,430,897.69 | E60: ='Benefits-Cost Summary'!F26 -> $0.00 | F60: ='Benefits-Cost Summary'!G26 -> 0 | G60: ='Benefits-Cost Summary'!I26 -> 0.24 | H60: $623,553.55 | I60: $345,580.52 | J60: 0 | K60: 0
B61: ='Benefits-Cost Summary'!A27 -> 2043 | C61: ='Benefits-Cost Summary'!C27 -> $2,597,139.66 | D61: ='Benefits-Cost Summary'!D27 -> $1,439,364.54 | E61: ='Benefits-Cost Summary'!F27 -> $0.00 | F61: ='Benefits-Cost Summary'!G27 -> 0 | G61: ='Benefits-Cost Summary'!I27 -> 0.23 | H61: $586,208.61 | I61: $324,883.53 | J61: 0 | K61: 0
B62: ='Benefits-Cost Summary'!A28 -> 2044 | C62: ='Benefits-Cost Summary'!C28 -> $2,612,416.95 | D62: ='Benefits-Cost Summary'!D28 -> $1,447,831.39 | E62: ='Benefits-Cost Summary'!F28 -> $0.00 | F62: ='Benefits-Cost Summary'!G28 -> 0 | G62: ='Benefits-Cost Summary'!I28 -> 0.21 | H62: $551,081.21 | I62: $305,415.52 | J62: 0 | K62: 0
B63: ='Benefits-Cost Summary'!A29 -> 2045 | C63: ='Benefits-Cost Summary'!C29 -> $2,627,694.25 | D63: ='Benefits-Cost Summary'!D29 -> $1,456,298.24 | E63: ='Benefits-Cost Summary'!F29 -> $0.00 | F63: ='Benefits-Cost Summary'!G29 -> 0 | G63: ='Benefits-Cost Summary'!I29 -> 0.20 | H63: $518,041.04 | I63: $287,104.28 | J63: 0 | K63: 0
B64: ='Benefits-Cost Summary'!A30 -> 2046 | C64: ='Benefits-Cost Summary'!C30 -> $2,642,971.54 | D64: ='Benefits-Cost Summary'!D30 -> $1,464,765.09 | E64: ='Benefits-Cost Summary'!F30 -> $0.00 | F64: ='Benefits-Cost Summary'!G30 -> 0 | G64: ='Benefits-Cost Summary'!I30 -> 0.18 | H64: $486,965.33 | I64: $269,881.76 | J64: 0 | K64: 0
B65: ='Benefits-Cost Summary'!A31 -> 2047 | C65: ='Benefits-Cost Summary'!C31 -> $2,658,248.83 | D65: ='Benefits-Cost Summary'!D31 -> $1,473,231.94 | E65: ='Benefits-Cost Summary'!F31 -> $0.00 | F65: ='Benefits-Cost Summary'!G31 -> 0 | G65: ='Benefits-Cost Summary'!I31 -> 0.17 | H65: $457,738.47 | I65: $253,683.90 | J65: 0 | K65: 0
B66: ='Benefits-Cost Summary'!A32 -> 2048 | C66: ='Benefits-Cost Summary'!C32 -> $2,673,526.12 | D66: ='Benefits-Cost Summary'!D32 -> $1,481,698.79 | E66: ='Benefits-Cost Summary'!F32 -> $0.00 | F66: ='Benefits-Cost Summary'!G32 -> 0 | G66: ='Benefits-Cost Summary'!I32 -> 0.16 | H66: =C66*$G66 -> $430,251.54 | I66: =D66*$G66 -> $238,450.33 | J66: =E66*$G66 -> 0 | K66: =F66*$G66 -> 0
B67: ='Benefits-Cost Summary'!A33 -> 2049 | C67: ='Benefits-Cost Summary'!C33 -> $2,688,803.42 | D67: ='Benefits-Cost Summary'!D33 -> $1,490,165.64 | E67: ='Benefits-Cost Summary'!F33 -> $0.00 | F67: ='Benefits-Cost Summary'!G33 -> 0 | G67: ='Benefits-Cost Summary'!I33 -> 0.15 | H67: $404,401.98 | I67: $224,124.21 | J67: 0 | K67: 0
B68: ='Benefits-Cost Summary'!A34 -> 2050 | C68: ='Benefits-Cost Summary'!C34 -> $2,704,080.71 | D68: ='Benefits-Cost Summary'!D34 -> $1,498,632.49 | E68: ='Benefits-Cost Summary'!F34 -> $0.00 | F68: ='Benefits-Cost Summary'!G34 -> 0 | G68: ='Benefits-Cost Summary'!I34 -> 0.14 | H68: $380,093.20 | I68: $210,652.00 | J68: 0 | K68: 0
B69: ='Benefits-Cost Summary'!A35 -> 2051 | C69: ='Benefits-Cost Summary'!C35 -> $2,719,358.00 | D69: ='Benefits-Cost Summary'!D35 -> $1,507,099.34 | E69: ='Benefits-Cost Summary'!F35 -> $0.00 | F69: ='Benefits-Cost Summary'!G35 -> 0 | G69: ='Benefits-Cost Summary'!I35 -> 0.13 | H69: $357,234.22 | I69: $197,983.30 | J69: 0 | K69: 0
B70: ='Benefits-Cost Summary'!A36 -> 2052 | C70: ='Benefits-Cost Summary'!C36 -> $2,734,635.29 | D70: ='Benefits-Cost Summary'!D36 -> $1,515,566.19 | E70: ='Benefits-Cost Summary'!F36 -> $0.00 | F70: ='Benefits-Cost Summary'!G36 -> 0 | G70: ='Benefits-Cost Summary'!I36 -> 0.12 | H70: $335,739.40 | I70: $186,070.62 | J70: 0 | K70: 0
B71: ='Benefits-Cost Summary'!A37 -> 2053 | C71: ='Benefits-Cost Summary'!C37 -> $2,749,912.58 | D71: ='Benefits-Cost Summary'!D37 -> $1,524,033.05 | E71: ='Benefits-Cost Summary'!F37 -> $0.00 | F71: ='Benefits-Cost Summary'!G37 -> 0 | G71: ='Benefits-Cost Summary'!I37 -> 0.11 | H71: $315,528.07 | I71: $174,869.27 | J71: 0 | K71: 0
B72: ='Benefits-Cost Summary'!A38 -> 2054 | C72: ='Benefits-Cost Summary'!C38 -> $2,765,189.88 | D72: ='Benefits-Cost Summary'!D38 -> $1,532,499.90 | E72: ='Benefits-Cost Summary'!F38 -> $0.00 | F72: ='Benefits-Cost Summary'!G38 -> 0 | G72: ='Benefits-Cost Summary'!I38 -> 0.11 | H72: $296,524.30 | I72: $164,337.16 | J72: 0 | K72: 0
B73: ='Benefits-Cost Summary'!A39 -> 2055 | C73: ='Benefits-Cost Summary'!C39 -> $2,780,467.17 | D73: ='Benefits-Cost Summary'!D39 -> $1,540,966.75 | E73: ='Benefits-Cost Summary'!F39 -> $0.00 | F73: ='Benefits-Cost Summary'!G39 -> $6,500,000.00 | G73: ='Benefits-Cost Summary'!I39 -> 0.10 | H73: $278,656.60 | I73: $154,434.68 | J73: 0 | K73: =F73*$G73 -> $651,425.74
B74: ='Benefits-Cost Summary'!B40 -> Totals | C74: ='Benefits-Cost Summary'!C40 -> $67,327,026.44 | D74: ='Benefits-Cost Summary'!D40 -> $37,313,409.05 | E74: ='Benefits-Cost Summary'!F40 -> $350,000.00 | F74: ='Benefits-Cost Summary'!G40 -> $6,500,000.00 | H74: =SUM(H41:H73) -> $17,441,866.22 | I74: =SUM(I41:I73) -> $9,666,482.00 | J74: =SUM(J41:J73) -> $251,835.95 | K74: =SUM(K41:K73) -> $651,425.74

Sheet Health Benefits (hidden)
A1: Value of Health Benefits from Modal Switch to Active Transport
A3: Calendar Year | B3: Project Year | C3: Induced Active Transportation Trips (Walking and Biking Combined) | D3: Value of Health Benefits ($2020)
H4: AM Peak Hour | J4: PM Peak Hour | L4: Reduction | N4: Percent Reduction
H5: No Build | I5: Alternative 4 | J5: No Build | K5: Alternative 4 | L5: AM | M5: PM | N5: AM | O5: PM
A6: 2020 | G6: VHT (hours) | H6: 1789 | I6: 1052 | J6: 1371 | K6: 1154 | L6: 737 | M6: 217 | N6: 41.2% | O6: 15.9%
A7: =1+A6:A6 -> 2021 | G7: VMT (miles) | H7: 59143 | I7: 59376 | J7: 66499 | K7: 66473 | L7: -233 | M7: 26 | N7: -0.4% | O7: 0.0%
A8: 2022 | F8: Travel Time (min) | G8: Southbound | H8: 14.80 | I8: 10.20 | J8: 10.13 | K8: 9.72 | L8: 5 | M8: 0 | N8: 31.1% | O8: 4.1%
A9: 2023 | G9: Northbound | H9: 18.27 | I9: 9.72 | J9: 13.13 | K9: 9.92 | L9: 9 | M9: 3 | N9: 46.8% | O9: 24.4%
A10: 2024 | F10: Fuel Use (gallons) | G10: Gas | H10: 1327 | I10: 1125 | J10: 1312 | K10: 1278 | L10: 202 | M10: 33 | N10: 15.2% | O10: 2.5%
A11: 2025 | G11: Diesel | H11: 450 | I11: 373 | J11: 450 | K11: 422 | L11: 78 | M11: 28 | N11: 17.2% | O11: 6.1%
A12: 2026 | F12: Fuel Cost (dollars) | G12: Gas | H12: $3,632.60 | I12: $3,080.85 | J12: $3,591.11 | K12: $3,500.12 | L12: $551.75 | M12: $90.99 | N12: 15.2% | O12: 2.5%
A13: 2027 | B13: 1 | G13: Diesel | H13: $1,391.47 | I13: $1,151.66 | J13: $1,389.12 | K13: $1,304.12 | L13: $239.80 | M13: $85.00 | N13: 17.2% | O13: 6.1%
A14: 2028 | B14: =B13+1 -> 2
A15: 2029 | B15: 3 | G15: Total Fuel Cost Savings Per Day = Fuel Cost Reductions in the AM & PM Peak Hours for both Gas and Diesel
A16: 2030 | B16: 4 | H16: Total Fuel Cost Savings Per Day = | I16: =L12 -> $551.75 | J16: + | K16: =M12 -> $90.99 | L16: + | M16: =L13 -> $239.80 | N16: + | O16: =M13 -> $85.00
A17: =1+A16:A16 -> 2031 | B17: 5 | H17: Total Fuel Cost Savings Per Day = | I17: =I16+K16+M16+O16 -> $967.55
A18: 2032 | B18: 6
A19: 2033 | B19: 7 | I19: 5 | J19: BUSINESS DAYS PER WEEK
A20: 2034 | B20: 8 | I20: 50 | J20: WORK WEEKS A YEAR
A21: 2035 | B21: 9 | I21: =I20*I19 -> 250 | J21: BUSINESS DAYS PER YEAR
A22: 2036 | B22: 10
A23: 2037 | B23: 11 | I23: =I21*I17 -> $241,886.89 | J23: Total Fuel Cost Savings Per Year
A24: 2038 | B24: 12 | J24: Total Fuel Cost Savings Per Day x Business Days Per Year
A25: 2039 | B25: 13
A26: 2040 | B26: 14 | G26: (1) | H26: Traffic Growth = | I26: 0.75% | J26: Per Year
A27: 2041 | B27: 15 | G27: (2) | H27: Fuel Cost Savings is directly related to the volume of traffic
A28: 2042 | B28: 16
A29: 2043 | B29: 17
A30: 2044 | B30: 18
A31: 2045 | B31: 19
A32: 2046 | B32: 20
A33: 2047 | B33: 21
A34: 2048 | B34: 22
A35: 2049 | B35: 23
A36: 2050 | B36: 24
A37: 2051 | B37: 25
A38: 2052 | B38: 26
A39: 2053 | B39: 27
A40: 2054 | B40: 28
A41: 2055 | B41: 29
A42: 2056 | B42: 30
A43: 2057 | B43: 31
A44: 2058 | B44: 32
A45: 2059 | B45: 33
A46: 2060 | B46: 34
A47: 2061 | B47: 35
D48: =SUM(D6:D47) -> $0

Sheet Operation & Maintenance Cost (hidden)
A2: McFARLAND JOHNSON | R2: JOB | T2: ELMORE-WORCESTER BCA - PROTECT
A3: Engineering, Planning & Construction Administration | R3: SHEET NO. | V3: =_xlfn.SHEET()-1 -> 8 | Z3: OF | AB3: =_xlfn.SHEETS()-2 -> 10
A4: www.mjinc.com | R4: CALCULATED BY | Z4: DATE
R5: CHECKED BY | Z5: DATE
R6: PROJECT NO. | Z6: SCALE | AB6: N.T.S.
D9: Additional Highway Operation & Maintenance Cost
AN11: Culvert | AO11: Selected Alternative | AQ11: Scoping Report Cost | AR11: Final Estimate Cost
D12: Begin Design Year | K12: = | L12: 2023 | U12: Final Design Costs | Z12: =L19*0 -> 0 | AN12: Elmore BF 0241(55) | AO12: 2B | AP12: Temp. Bridge | AQ12: $1,809,224.00 | AR12: $999,854.23
D13: End Design Year | K13: = | L13: 2024 | U13: ROW Costs | Z13: 0 | AN13: WORCESTER BF 0241(56) | AO13: 2C | AP13: Temp. Bridge | AQ13: $2,355,374.00 | AR13: $1,474,395.17
D14: Pre-Construction Costs | K14: = | L14: =SUM(Z12:AD15) -> 0 | U14: Mitigation Costs | Z14: 0 | AN14: Worcester BF 0241(57) | AO14: 3C | AP14: Temp. Bridge | AQ14: $3,103,203.00 | AR14: $3,245,376.22
D15: PE/ROW Costs Per Year | K15: = | L15: =L14/((L13-L12)+1) -> 0 | U15: Utility Reloc. Costs | Z15: 0 | AN15: Worcester BF 0241(59) | AO15: 4B | AP15: Temp. Bridge | AQ15: $2,371,303.00 | AR15: $2,306,176.65
AN16: Elmore STP CULV (64) | AP16: Temp. Bridge | AQ16: $3,296,650.00 | AR16: $2,563,442.91
D17: Begin Construction Year | K17: = | L17: 2025
D18: End Construction Year | K18: = | L18: 2026 | AP18: Total | AQ18: $12,935,754.00 | AR18: $10,589,245.18
D19: Construction Costs | K19: = | L19: =ROUNDUP(AR18,-3) -> $10,590,000
D20: Construction Costs Per Year | K20: = | L20: =L19/((L18-L17)+1) -> $5,295,000.00
D22: Project Opening Year | K22: = | L22: 2030
D24: Analysis Periond | K24: = | L24: 30 Years
D26: End Analysis Year Year | K26: = | L26: =L22+L24 -> 2060 Years
D28: Calendar Year | G28: Project Year1 | J28: Design Costs | O28: Construction Costs | T28: Total Project Costs
D30: 2023 | G30: 1 | J30: =$L$15 -> 0 | T30: =J30+O30 -> 0
D31: =1+D30:D30 -> 2024 | G31: =G30+1 -> 2 | J31: =$L$15 -> 0 | T31: =J31+O31 -> 0
D32: 2025 | G32: 3 | O32: =$L$20 -> $5,295,000.00 | T32: $5,295,000.00
D33: 2026 | G33: 4 | O33: $5,295,000.00 | T33: $5,295,000.00
D34: 2027 | G34: 5 | T34: 0
D35: 2028 | G35: 6 | T35: 0
D36: 2029 | G36: 7 | T36: 0
D37: 2030 | G37: 8 | T37: 0
D38: 2031 | G38: 9 | T38: 0
D39: 2032 | G39: 10 | T39: 0
D40: 2033 | G40: 11 | T40: 0
D41: 2034 | G41: 12 | T41: 0
D42: 2035 | G42: 13 | T42: 0
D43: 2036 | G43: 14 | T43: 0

Sheet Crash Costs Summary (hidden)
A2: McFARLAND JOHNSON | M2: JOB | N2: ELMORE-WORCESTER BCA - PROTECT
A3: Engineering, Planning & Construction Administration | M3: SHEET NO. | N3: =_xlfn.SHEET()-1 -> 9 | O3: OF | P3: =_xlfn.SHEETS()-2 -> 10
A4: www.mjinc.com | M4: CALCULATED BY | O4: DATE
M5: CHECKED BY | O5: DATE
M6: PROJECT NO. | O6: SCALE | P6: N.T.S.
A8: Value of Crash Reductions
A9: Calendar Year | B9: Project Year | C9: ='Crash Costs'!A30 -> Widen Shoulder 0' to 2' | D9: I-93 Weave Between I-89 and Exit 12 | E9: I-93 Weave Between Exit 12 and Exit 13 | F9: Exit 12 Roundabouts | G9: I-89 Exit 1 NB Off Ramp Intersection with South Street | H9: I-89 Exit 1 SB Off Ramp Intersection with South Street | K9: Total Crash Reduction Benefit
A11: 2022 | C11: ='Crash Costs'!S14 -> $0.00 | K11: =SUM(C10:C10) -> $0
A12: =A11+1 -> 2023 | B12: 1 | C12: ='Crash Costs'!S15 -> $0.00 | K12: =SUM(C11:C11) -> $0
A13: =A12+1 -> 2024 | B13: =B12+1 -> 2 | C13: ='Crash Costs'!S16 -> $0.00 | K13: =SUM(C13:C13) -> $0
A14: 2025 | B14: =B13+1 -> 3 | C14: ='Crash Costs'!S17 -> $0.00 | K14: $0
A15: 2026 | B15: =B14+1 -> 4 | C15: ='Crash Costs'!S18 -> $0.00 | K15: $0
A16: 2027 | B16: 5 | C16: ='Crash Costs'!S19 -> $0.00 | K16: $0
A17: 2028 | B17: 6 | C17: ='Crash Costs'!S20 -> $0.00 | D17: =#REF! ->  | E17: =#REF! ->  | F17: =#REF! ->  | G17: ='Crash Costs- SW Barrier'!S17 -> $0 | H17: =#REF! ->  | K17: $0
A18: 2029 | B18: 7 | C18: ='Crash Costs'!S21 -> $0.00 | D18: =#REF! ->  | E18: =#REF! ->  | F18: =#REF! ->  | G18: ='Crash Costs- SW Barrier'!S18 -> $0 | H18: =#REF! ->  | K18: $0
A19: 2030 | B19: 8 | C19: $0.00 | D19: =#REF! ->  | E19: =#REF! ->  | F19: =#REF! ->  | G19: ='Crash Costs- SW Barrier'!S19 -> $0 | H19: =#REF! ->  | K19: $0
A20: 2031 | B20: 9 | C20: ='Crash Costs'!S23 -> $0.00 | D20: =#REF! ->  | E20: =#REF! ->  | F20: =#REF! ->  | G20: ='Crash Costs- SW Barrier'!S20 -> $0 | H20: =#REF! ->  | K20: $0
A21: 2032 | B21: 10 | C21: ='Crash Costs'!S24 -> $0.00 | D21: =#REF! ->  | E21: =#REF! ->  | F21: =#REF! ->  | G21: ='Crash Costs- SW Barrier'!S21 -> $0 | H21: =#REF! ->  | K21: $0
A22: 2033 | B22: 11 | C22: ='Crash Costs'!S25 -> $0.00 | D22: =#REF! ->  | E22: =#REF! ->  | F22: =#REF! ->  | G22: ='Crash Costs- SW Barrier'!S22 -> $0 | H22: =#REF! ->  | K22: $0
A23: 2034 | B23: 12 | C23: ='Crash Costs'!S26 -> $0.00 | D23: =#REF! ->  | E23: =#REF! ->  | F23: =#REF! ->  | G23: ='Crash Costs- SW Barrier'!S23 -> $0 | H23: =#REF! ->  | K23: $0
A24: 2035 | B24: 13 | C24: ='Crash Costs'!S27 -> $0.00 | D24: =#REF! ->  | E24: =#REF! ->  | F24: =#REF! ->  | G24: ='Crash Costs- SW Barrier'!S24 -> $0 | H24: =#REF! ->  | K24: $0
A25: 2036 | B25: 14 | C25: ='Crash Costs'!S28 -> $0.00 | D25: =#REF! ->  | E25: =#REF! ->  | F25: =#REF! ->  | G25: ='Crash Costs- SW Barrier'!S25 -> $0 | H25: =#REF! ->  | K25: $0
A26: 2037 | B26: 15 | C26: ='Crash Costs'!S29 -> $0.00 | D26: =#REF! ->  | E26: =#REF! ->  | F26: =#REF! ->  | G26: ='Crash Costs- SW Barrier'!S26 -> $0 | H26: =#REF! ->  | K26: $0
A27: 2038 | B27: 16 | C27: ='Crash Costs'!S30 -> $0.00 | D27: =#REF! ->  | E27: =#REF! ->  | F27: =#REF! ->  | G27: ='Crash Costs- SW Barrier'!S27 -> $0 | H27: =#REF! ->  | K27: $0
A28: 2039 | B28: 17 | C28: ='Crash Costs'!S31 -> $0.00 | D28: =#REF! ->  | E28: =#REF! ->  | F28: =#REF! ->  | G28: ='Crash Costs- SW Barrier'!S28 -> $0 | H28: =#REF! ->  | K28: =SUM(C28:C28) -> $0
A29: 2040 | B29: 18 | C29: ='Crash Costs'!S32 -> $0.00 | D29: =#REF! ->  | E29: =#REF! ->  | F29: =#REF! ->  | G29: ='Crash Costs- SW Barrier'!S29 -> $0 | H29: =#REF! ->  | K29: $0
A30: 2041 | B30: 19 | C30: ='Crash Costs'!S33 -> $0.00 | D30: =#REF! ->  | E30: =#REF! ->  | F30: =#REF! ->  | G30: ='Crash Costs- SW Barrier'!S30 -> $0 | H30: =#REF! ->  | K30: $0
A31: 2042 | B31: 20 | C31: ='Crash Costs'!S34 -> $0.00 | D31: =#REF! ->  | E31: =#REF! ->  | F31: =#REF! ->  | G31: ='Crash Costs- SW Barrier'!S31 -> $0 | H31: =#REF! ->  | K31: $0
A32: 2043 | B32: 21 | C32: ='Crash Costs'!S35 -> $0.00 | D32: =#REF! ->  | E32: =#REF! ->  | F32: =#REF! ->  | G32: ='Crash Costs- SW Barrier'!S32 -> $0 | H32: =#REF! ->  | K32: $0
A33: 2044 | B33: 22 | C33: ='Crash Costs'!S36 -> $0.00 | D33: =#REF! ->  | E33: =#REF! ->  | F33: =#REF! ->  | G33: ='Crash Costs- SW Barrier'!S33 -> $0 | H33: =#REF! ->  | K33: $0
A34: 2045 | B34: 23 | C34: ='Crash Costs'!S37 -> $0.00 | D34: =#REF! ->  | E34: =#REF! ->  | F34: =#REF! ->  | G34: ='Crash Costs- SW Barrier'!S34 -> $0 | H34: =#REF! ->  | K34: $0
A35: 2046 | B35: 24 | C35: ='Crash Costs'!S38 -> $0.00 | D35: =#REF! ->  | E35: =#REF! ->  | F35: =#REF! ->  | G35: ='Crash Costs- SW Barrier'!S35 -> $0 | H35: =#REF! ->  | K35: $0
A36: 2047 | B36: 25 | C36: ='Crash Costs'!S39 -> $0.00 | D36: =#REF! ->  | E36: =#REF! ->  | F36: =#REF! ->  | G36: ='Crash Costs- SW Barrier'!S36 -> $0 | H36: =#REF! ->  | K36: $0
A37: 2048 | B37: 26 | C37: ='Crash Costs'!S40 -> $0.00 | D37: =#REF! ->  | E37: =#REF! ->  | F37: =#REF! ->  | G37: ='Crash Costs- SW Barrier'!S37 -> $0 | H37: =#REF! ->  | K37: $0
A38: 2049 | B38: 27 | C38: ='Crash Costs'!S41 -> $0.00 | D38: =#REF! ->  | E38: =#REF! ->  | F38: =#REF! ->  | G38: ='Crash Costs- SW Barrier'!S38 -> $0 | H38: =#REF! ->  | K38: $0
A39: 2050 | B39: 28 | C39: ='Crash Costs'!S42 -> $0.00 | D39: =#REF! ->  | E39: =#REF! ->  | F39: =#REF! ->  | G39: ='Crash Costs- SW Barrier'!S39 -> $0 | H39: =#REF! ->  | K39: $0
A40: 2051 | B40: 29 | C40: ='Crash Costs'!S43 -> $0.00 | D40: =#REF! ->  | E40: =#REF! ->  | F40: =#REF! ->  | G40: ='Crash Costs- SW Barrier'!S40 -> $0 | H40: =#REF! ->  | K40: $0
A41: 2052 | B41: 30 | C41: ='Crash Costs'!S44 -> $0.00 | D41: =#REF! ->  | E41: =#REF! ->  | F41: =#REF! ->  | G41: ='Crash Costs- SW Barrier'!S41 -> $0 | H41: =#REF! ->  | K41: $0
A42: 2053 | B42: 31 | C42: ='Crash Costs'!S45 -> $0.00 | D42: =#REF! ->  | E42: =#REF! ->  | F42: =#REF! ->  | G42: ='Crash Costs- SW Barrier'!S42 -> $0 | H42: =#REF! ->  | K42: =SUM(C42:C42) -> $0
A43: 2054 | B43: 32 | C43: ='Crash Costs'!S46 -> $0.00 | D43: =#REF! ->  | E43: =#REF! ->  | F43: =#REF! ->  | G43: ='Crash Costs- SW Barrier'!S43 -> $0 | H43: =#REF! ->  | K43: $0
A44: 2055 | B44: 33 | C44: ='Crash Costs'!S47 -> $0.00 | D44: =#REF! ->  | E44: =#REF! ->  | F44: =#REF! ->  | G44: ='Crash Costs- SW Barrier'!S44 -> $0 | H44: =#REF! ->  | K44: $0
A45: 2056 | B45: 34 | C45: ='Crash Costs'!S48 -> $0.00 | D45: =#REF! ->  | E45: =#REF! ->  | F45: =#REF! ->  | G45: ='Crash Costs- SW Barrier'!S45 -> $0 | H45: =#REF! ->  | K45: $0
A46: 2057 | B46: 35 | C46: ='Crash Costs'!S49 -> $0.00 | D46: =#REF! ->  | E46: =#REF! ->  | F46: =#REF! ->  | G46: ='Crash Costs- SW Barrier'!S46 -> $0 | H46: =#REF! ->  | K46: $0
A47: 2058 | B47: 36 | C47: ='Crash Costs'!S50 -> $0.00 | D47: =#REF! ->  | E47: =#REF! ->  | F47: =#REF! ->  | G47: ='Crash Costs- SW Barrier'!S47 -> $0 | H47: =#REF! ->  | K47: $0
A48: 2059 | B48: 37 | C48: ='Crash Costs'!S51 -> $0.00 | D48: =#REF! ->  | E48: =#REF! ->  | F48: =#REF! ->  | G48: ='Crash Costs- SW Barrier'!S48 -> $0 | H48: =#REF! ->  | K48: $0
A49: 2060 | B49: 38 | C49: ='Crash Costs'!S52 -> $0.00 | D49: =#REF! ->  | E49: =#REF! ->  | F49: =#REF! ->  | G49: ='Crash Costs- SW Barrier'!S49 -> $0 | H49: =#REF! ->  | K49: $0
K50: =SUM(K11:K49) -> $0

Sheet Crash Costs- SW Barrier (hidden)
A1: WINOOSKI RIVER BRIDGE
A2: Value of Life Crash Cost by Type
A3: Vehicle/Bike Crashes
A4: Type | B4: Cost ($2020) | H4: Expected Crashes per year based on % increase in traffic volume per year (No-Build) | M4: Expected Crashes per year (Build) Using CMF | P4: Expected reduction in crashes per year | S4: Cost Savings ($2018)
A5: PDO 1 | B5: $4,600 | H5: Year | I5: % increase in traffic volume (Compared to 2017 Volumes) | J5: PDO Crashes | K5: Injury Crashes | L5: Fatal Crashes | M5: PDO Crashes | N5: Injury Crashes | O5: Fatal Crashes | P5: PDO Crashes | Q5: Injury Crashes | R5: Fatal Crashes)
A6: Injury 2 | B6: $454,200
A7: Fatality 3 | B7: $11,600,000 | H7: 2017 | I7: 0.00% | J7: =C17 -> 0.00 | K7: =C18 -> 0.00 | L7: 0.00 | M7: =ROUNDUP(J7*$C$23,2) -> 0.00 | N7: 0.00 | O7: 0.00 | S7: =((P7*$B$5)+(Q7*$B$6)+(R7*$B$7)) -> $0
H8: =H7+1 -> 2018 | I8: =((1+$C$42)^(H8-$H$7))-1 -> 0.75% | J8: =ROUNDUP($J$7*(1+I8),2) -> 0.00 | K8: =ROUNDUP($K$7*(1+I8),2) -> 0.00 | L8: =ROUNDUP($L$7*(1+I8),2) -> 0.00 | M8: 0.00 | N8: 0.00 | O8: 0.00 | S8: $0
A9: Sources: USDOT Benefit-Cost Analysis Guidance for Discretionary Grant Programs | H9: =H8+1 -> 2019 | I9: 1.51% | J9: =ROUNDUP($J$7*(1+I9),2) -> 0.00 | K9: =ROUNDUP($K$7*(1+I9),2) -> 0.00 | L9: =ROUNDUP($L$7*(1+I9),2) -> 0.00 | M9: 0.00 | N9: 0.00 | O9: 0.00 | S9: $0
A10: (1) | B10: Table A-2 - Property Damage Only (PDO) Crashes | H10: 2020 | I10: 2.27% | J10: 0.00 | K10: 0.00 | L10: 0.00 | M10: 0.00 | N10: 0.00 | O10: 0.00 | S10: $0
A11: (2) | B11: Table A-1 - Value of Reduced Fatalities and Injuries (MAIS 2 - Moderate) | H11: 2021 | I11: 3.03% | J11: 0.00 | K11: 0.00 | L11: 0.00 | M11: 0.00 | N11: 0.00 | O11: 0.00 | S11: $0
A12: (3) | B12: Table A-1 - Value of Reduced Fatalities and Injuries (Fatal) | H12: 2022 | I12: 3.81% | J12: 0.00 | K12: 0.00 | L12: 0.00 | M12: 0.00 | N12: 0.00 | O12: 0.00 | S12: $0
H13: 2023 | I13: 4.59% | J13: 0.00 | K13: 0.00 | L13: 0.00 | M13: 0.00 | N13: 0.00 | O13: 0.00 | S13: $0
A14: Observed Crashes (20116-2021)4 | C14: Average per year | H14: 2024 | I14: 5.37% | J14: 0.00 | K14: 0.00 | L14: 0.00 | M14: 0.00 | N14: 0.00 | O14: 0.00 | S14: $0
H15: 2025 | I15: 6.16% | J15: 0.00 | K15: 0.00 | L15: 0.00 | M15: 0.00 | N15: 0.00 | O15: 0.00 | S15: $0
A16: Total | B16: 0 | C16: =B16/6 -> 0.0 | H16: 2026 | I16: 6.96% | J16: 0.00 | K16: 0.00 | L16: 0.00 | M16: 0.00 | N16: 0.00 | O16: 0.00 | S16: $0
A17: PDO | B17: =B16-B18 -> 0 | C17: =B17/6 -> 0.0 | H17: 2027 | I17: 7.76% | J17: 0.00 | K17: 0.00 | L17: 0.00 | M17: 0.00 | N17: 0.00 | O17: 0.00 | P17: =ABS(J17-M17) -> 0.00 | Q17: 0.00 | R17: 0.00 | S17: $0
A18: Injury | B18: 0 | C18: =B18/6 -> 0.0 | H18: 2028 | I18: 8.57% | J18: 0.00 | K18: 0.00 | L18: 0.00 | M18: 0.00 | N18: 0.00 | O18: 0.00 | P18: 0.00 | Q18: 0.00 | R18: 0.00 | S18: $0
A19: Fatal | B19: 0 | C19: =B19/10 -> 0.0 | H19: 2029 | I19: 9.38% | J19: 0.00 | K19: 0.00 | L19: 0.00 | M19: 0.00 | N19: 0.00 | O19: 0.00 | P19: 0.00 | Q19: 0.00 | R19: 0.00 | S19: $0
A20: (4) | B20: Source: Vermont Agency of Transportation | H20: 2030 | I20: 10.20% | J20: 0.00 | K20: 0.00 | L20: 0.00 | M20: 0.00 | N20: 0.00 | O20: 0.00 | P20: 0.00 | Q20: 0.00 | R20: 0.00 | S20: $0
H21: 2031 | I21: 11.03% | J21: 0.00 | K21: 0.00 | L21: 0.00 | M21: 0.00 | N21: 0.00 | O21: 0.00 | P21: 0.00 | Q21: 0.00 | R21: 0.00 | S21: $0
A22: Crash Modification Factor | H22: 2032 | I22: 11.86% | J22: 0.00 | K22: 0.00 | L22: 0.00 | M22: 0.00 | N22: 0.00 | O22: 0.00 | P22: 0.00 | Q22: 0.00 | R22: 0.00 | S22: $0
A23: Sidewalk Barrier Install | C23: 0.33 | H23: 2033 | I23: 12.70% | J23: 0.00 | K23: 0.00 | L23: 0.00 | M23: =ROUNDUP(J23*$C$23,2) -> 0.00 | N23: 0.00 | O23: 0.00 | P23: =ABS(J23-M23) -> 0.00 | Q23: =ABS(K23-N23) -> 0.00 | R23: =ABS(L23-O23) -> 0.00 | S23: $0
H24: 2034 | I24: 13.54% | J24: 0.00 | K24: 0.00 | L24: 0.00 | M24: 0.00 | N24: 0.00 | O24: 0.00 | P24: =ABS(J24-M24) -> 0.00 | Q24: 0.00 | R24: 0.00 | S24: $0
H25: 2035 | I25: 14.40% | J25: 0.00 | K25: 0.00 | L25: 0.00 | M25: 0.00 | N25: 0.00 | O25: 0.00 | P25: 0.00 | Q25: 0.00 | R25: 0.00 | S25: $0
A26: 5. Use a CMF of 0.75 for installing roundabouts at ramp terminal intersections | H26: 2036 | I26: 15.25% | J26: 0.00 | K26: 0.00 | L26: 0.00 | M26: 0.00 | N26: 0.00 | O26: 0.00 | P26: 0.00 | Q26: 0.00 | R26: 0.00 | S26: $0
H27: 2037 | I27: 16.12% | J27: 0.00 | K27: 0.00 | L27: 0.00 | M27: 0.00 | N27: 0.00 | O27: 0.00 | P27: 0.00 | Q27: 0.00 | R27: 0.00 | S27: $0
H28: 2038 | I28: 16.99% | J28: 0.00 | K28: 0.00 | L28: 0.00 | M28: 0.00 | N28: 0.00 | O28: 0.00 | P28: 0.00 | Q28: 0.00 | R28: 0.00 | S28: $0
H29: 2039 | I29: 17.87% | J29: 0.00 | K29: 0.00 | L29: 0.00 | M29: 0.00 | N29: 0.00 | O29: 0.00 | P29: 0.00 | Q29: 0.00 | R29: 0.00 | S29: $0
H30: 2040 | I30: 18.75% | J30: 0.00 | K30: 0.00 | L30: 0.00 | M30: 0.00 | N30: 0.00 | O30: 0.00 | P30: 0.00 | Q30: 0.00 | R30: 0.00 | S30: $0
H31: 2041 | I31: 19.64% | J31: 0.00 | K31: 0.00 | L31: 0.00 | M31: 0.00 | N31: 0.00 | O31: 0.00 | P31: 0.00 | Q31: 0.00 | R31: 0.00 | S31: $0
H32: 2042 | I32: 20.54% | J32: 0.00 | K32: 0.00 | L32: 0.00 | M32: 0.00 | N32: 0.00 | O32: 0.00 | P32: 0.00 | Q32: 0.00 | R32: 0.00 | S32: $0
H33: 2043 | I33: 21.44% | J33: 0.00 | K33: 0.00 | L33: 0.00 | M33: 0.00 | N33: 0.00 | O33: 0.00 | P33: 0.00 | Q33: 0.00 | R33: 0.00 | S33: $0
H34: 2044 | I34: 22.35% | J34: 0.00 | K34: 0.00 | L34: 0.00 | M34: 0.00 | N34: 0.00 | O34: 0.00 | P34: 0.00 | Q34: 0.00 | R34: 0.00 | S34: $0
H35: 2045 | I35: 23.27% | J35: 0.00 | K35: 0.00 | L35: 0.00 | M35: 0.00 | N35: 0.00 | O35: 0.00 | P35: 0.00 | Q35: 0.00 | R35: 0.00 | S35: $0
H36: 2046 | I36: 24.20% | J36: 0.00 | K36: 0.00 | L36: 0.00 | M36: 0.00 | N36: 0.00 | O36: 0.00 | P36: 0.00 | Q36: 0.00 | R36: 0.00 | S36: $0
H37: 2047 | I37: 25.13% | J37: 0.00 | K37: 0.00 | L37: 0.00 | M37: 0.00 | N37: 0.00 | O37: 0.00 | P37: 0.00 | Q37: 0.00 | R37: 0.00 | S37: $0
H38: 2048 | I38: 26.07% | J38: 0.00 | K38: 0.00 | L38: 0.00 | M38: 0.00 | N38: 0.00 | O38: 0.00 | P38: 0.00 | Q38: 0.00 | R38: 0.00 | S38: $0
H39: 2049 | I39: 27.01% | J39: 0.00 | K39: 0.00 | L39: 0.00 | M39: 0.00 | N39: 0.00 | O39: 0.00 | P39: 0.00 | Q39: 0.00 | R39: 0.00 | S39: $0
H40: 2050 | I40: 27.96% | J40: 0.00 | K40: 0.00 | L40: 0.00 | M40: 0.00 | N40: 0.00 | O40: 0.00 | P40: 0.00 | Q40: 0.00 | R40: 0.00 | S40: $0
A41: Assumptions | H41: 2051 | I41: 28.92% | J41: 0.00 | K41: 0.00 | L41: 0.00 | M41: 0.00 | N41: 0.00 | O41: 0.00 | P41: 0.00 | Q41: 0.00 | R41: 0.00 | S41: $0
A42: (1) | B42: Traffic Growth = | C42: 0.75% | D42: Per Year | H42: 2052 | I42: 29.89% | J42: 0.00 | K42: 0.00 | L42: 0.00 | M42: 0.00 | N42: 0.00 | O42: 0.00 | P42: 0.00 | Q42: 0.00 | R42: 0.00 | S42: $0
A43: (2) | B43: Crashes will increase at same rate as traffic | H43: 2053 | I43: 30.86% | J43: 0.00 | K43: 0.00 | L43: 0.00 | M43: 0.00 | N43: 0.00 | O43: 0.00 | P43: 0.00 | Q43: 0.00 | R43: 0.00 | S43: $0
H44: 2054 | I44: 31.85% | J44: 0.00 | K44: 0.00 | L44: 0.00 | M44: 0.00 | N44: 0.00 | O44: 0.00 | P44: =ABS(J44-M44) -> 0.00 | Q44: 0.00 | R44: 0.00 | S44: $0
H45: 2055 | I45: 32.83% | J45: 0.00 | K45: 0.00 | L45: 0.00 | M45: 0.00 | N45: 0.00 | O45: 0.00 | P45: 0.00 | Q45: 0.00 | R45: 0.00 | S45: $0
H46: 2056 | I46: 33.83% | J46: 0.00 | K46: 0.00 | L46: 0.00 | M46: 0.00 | N46: 0.00 | O46: 0.00 | P46: 0.00 | Q46: 0.00 | R46: 0.00 | S46: $0
H47: 2057 | I47: 34.83% | J47: 0.00 | K47: 0.00 | L47: 0.00 | M47: 0.00 | N47: 0.00 | O47: 0.00 | P47: 0.00 | Q47: 0.00 | R47: 0.00 | S47: $0
R48: Total | S48: =SUM(S7:S43) -> $0

Sheet Crash Costs (hidden)
A2: McFARLAND JOHNSON | M2: JOB | N2: ELMORE-WORCESTER BCA - PROTECT
A3: Engineering, Planning & Construction Administration | M3: SHEET NO. | N3: =_xlfn.SHEET()-1 -> 11 | O3: OF | P3: =_xlfn.SHEETS()-2 -> 10
A4: www.mjinc.com | M4: CALCULATED BY | O4: DATE
M5: CHECKED BY | O5: DATE
M6: PROJECT NO. | O6: SCALE | P6: N.T.S.
A8: WINOOSKI RIVER BRIDGE
A9: Value of Life Crash Cost by Type
A11: Type | B11: Cost ($2020) | H11: Expected Crashes per year based on % increase in traffic volume per year (No-Build) | M11: Expected Crashes per year (Build) Using CMF | P11: Expected reduction in crashes per year | S11: Cost Savings ($2020)
A12: PDO 1 | B12: $4,600 | H12: Year | I12: % increase in traffic volume (Compared to 2017 Volumes) | J12: PDO Crashes | K12: Injury Crashes | L12: Fatal Crashes | M12: PDO Crashes | N12: Injury Crashes | O12: Fatal Crashes | P12: PDO Crashes | Q12: Injury Crashes | R12: Fatal Crashes)
A13: Injury 2 | B13: $151,000
A14: Fatality 3 | B14: $11,600,000 | H14: =H15-1 -> 2022 | I14: =((1+$C$49)^(H14-#REF!))-1 ->  | J14: =C$24 -> 0.00 | K14: =C$25 -> 0.00 | L14: =C$26 -> 0.00 | M14: =ROUNDUP(J14*$B$48,2) -> 0.00 | N14: =ROUNDUP(K14*$B$48,2) -> 0.00 | O14: =ROUNDUP(L14*$B$48,2) -> 0.00 | S14: =((P14*$B$12)+(Q14*$B$13)+(R14*$B$14)) -> $0
H15: 2023 | I15: =((1+$C$49)^(H15-#REF!))-1 ->  | J15: =C$24 -> 0.00 | K15: 0.00 | L15: 0.00 | M15: =ROUNDUP(J15*$B$48,2) -> 0.00 | N15: =ROUNDUP(K15*$B$48,2) -> 0.00 | O15: =ROUNDUP(L15*$B$48,2) -> 0.00 | S15: $0
A16: Sources: USDOT Benefit-Cost Analysis Guidance for Discretionary Grant Programs | H16: =H17-1 -> 2024 | I16: =((1+$C$49)^(H16-#REF!))-1 ->  | J16: =C$24 -> 0.00 | K16: =C$25 -> 0.00 | L16: =C$26 -> 0.00 | M16: =ROUNDUP(J16*$B$48,2) -> 0.00 | N16: =ROUNDUP(K16*$B$48,2) -> 0.00 | O16: =ROUNDUP(L16*$B$48,2) -> 0.00 | S16: =((P16*$B$12)+(Q16*$B$13)+(R16*$B$14)) -> $0
A17: (1) | B17: Table A-2 - Property Damage Only (PDO) Crashes | H17: 2025 | I17: =((1+$C$49)^(H17-#REF!))-1 ->  | J17: 0.00 | K17: 0.00 | L17: 0.00 | M17: =ROUNDUP(J17*$B$48,2) -> 0.00 | N17: =ROUNDUP(K17*$B$48,2) -> 0.00 | O17: =ROUNDUP(L17*$B$48,2) -> 0.00 | S17: $0
A18: (2) | B18: Table A-1 - Non-Incapacitating Injury Crashes | H18: =H19-1 -> 2026 | I18: =((1+$C$49)^(H18-#REF!))-1 ->  | J18: 0.00 | K18: 0.00 | L18: 0.00 | M18: 0.00 | N18: 0.00 | O18: 0.00 | S18: $0
A19: (3) | B19: Table A-1 - Value of Reduced Fatalities and Injuries (Fatal) | H19: 2027 | I19: =((1+$C$49)^(H19-#REF!))-1 ->  | J19: =C$24 -> 0.00 | K19: =C$25 -> 0.00 | L19: =C$26 -> 0.00 | M19: =ROUNDUP(J19*$B$48,2) -> 0.00 | N19: =ROUNDUP(K19*$B$48,2) -> 0.00 | O19: =ROUNDUP(L19*$B$48,2) -> 0.00 | S19: =((P19*$B$12)+(Q19*$B$13)+(R19*$B$14)) -> $0
H20: =H19+1 -> 2028 | I20: =((1+$C$49)^(H20-#REF!))-1 ->  | J20: 0.00 | K20: 0.00 | L20: 0.00 | M20: =ROUNDUP(J20*$B$48,2) -> 0.00 | N20: =ROUNDUP(K20*$B$48,2) -> 0.00 | O20: =ROUNDUP(L20*$B$48,2) -> 0.00 | S20: $0
A21: Observed Crashes (20116-2021)4 | C21: Average per year | H21: 2029 | I21: =((1+$C$49)^(H21-#REF!))-1 ->  | J21: 0.00 | K21: 0.00 | L21: 0.00 | M21: 0.00 | N21: 0.00 | O21: 0.00 | S21: $0
H22: 2030 | I22: =((1+$C$49)^(H22-#REF!))-1 ->  | J22: 0.00 | K22: 0.00 | L22: 0.00 | M22: 0.00 | N22: 0.00 | O22: 0.00 | S22: =((P22*$B$12)+(Q22*$B$13)+(R22*$B$14)) -> $0
A23: Total | B23: 62 | C23: 0.0 | H23: 2031 | I23: =((1+$C$49)^(H23-#REF!))-1 ->  | J23: 0.00 | K23: 0.00 | L23: 0.00 | M23: 0.00 | N23: 0.00 | O23: 0.00 | P23: =ABS(J23-M23) -> 0.00 | Q23: =ABS(K23-N23) -> 0.00 | R23: =ABS(L23-O23) -> 0.00 | S23: $0
A24: PDO | B24: =B23-B25 -> 53 | C24: 0.0 | H24: 2032 | I24: =((1+$C$49)^(H24-#REF!))-1 ->  | J24: 0.00 | K24: 0.00 | L24: 0.00 | M24: =ROUNDUP(J24*$B$48,2) -> 0.00 | N24: 0.00 | O24: 0.00 | P24: =ABS(J24-M24) -> 0.00 | Q24: =ABS(K24-N24) -> 0.00 | R24: =ABS(L24-O24) -> 0.00 | S24: =((P24*$B$12)+(Q24*$B$13)+(R24*$B$14)) -> $0
A25: Injury | B25: 9 | C25: 0.0 | H25: 2033 | I25: =((1+$C$49)^(H25-#REF!))-1 ->  | J25: 0.00 | K25: 0.00 | L25: 0.00 | M25: 0.00 | N25: 0.00 | O25: 0.00 | P25: 0.00 | Q25: 0.00 | R25: 0.00 | S25: $0
A26: Fatal | B26: 0 | C26: =B26/10 -> 0.0 | H26: 2034 | I26: =((1+$C$49)^(H26-#REF!))-1 ->  | J26: 0.00 | K26: 0.00 | L26: 0.00 | M26: 0.00 | N26: 0.00 | O26: 0.00 | P26: 0.00 | Q26: 0.00 | R26: 0.00 | S26: $0
A27: (4) | B27: Source: Vermont Agency of Transportation | H27: 2035 | I27: =((1+$C$49)^(H27-#REF!))-1 ->  | J27: 0.00 | K27: 0.00 | L27: 0.00 | M27: 0.00 | N27: 0.00 | O27: 0.00 | P27: 0.00 | Q27: 0.00 | R27: 0.00 | S27: $0
H28: 2036 | I28: =((1+$C$49)^(H28-#REF!))-1 ->  | J28: 0.00 | K28: 0.00 | L28: 0.00 | M28: 0.00 | N28: 0.00 | O28: 0.00 | P28: =ABS(J28-M28) -> 0.00 | Q28: =ABS(K28-N28) -> 0.00 | R28: =ABS(L28-O28) -> 0.00 | S28: $0
A29: Crash Modification Factor | H29: 2037 | I29: =((1+$C$49)^(H29-#REF!))-1 ->  | J29: 0.00 | K29: 0.00 | L29: 0.00 | M29: 0.00 | N29: 0.00 | O29: 0.00 | P29: =ABS(J29-M29) -> 0.00 | Q29: =ABS(K29-N29) -> 0.00 | R29: =ABS(L29-O29) -> 0.00 | S29: $0
A30: Widen Shoulder 0' to 2' | C30: 0.93 | H30: 2038 | I30: =((1+$C$49)^(H30-#REF!))-1 ->  | J30: 0.00 | K30: 0.00 | L30: 0.00 | M30: 0.00 | N30: 0.00 | O30: 0.00 | P30: 0.00 | Q30: 0.00 | R30: 0.00 | S30: $0
A31: CMF ID: 8712 PRIOR CONDITION: ROADWAY WITH NARROWER SHOULDERS STUDY: EVALUATION OF SAFETY EFFECTIVENESS OF MULTIPLE CROSS SECTIONAL FEATURES ON URBAN ARTERIALS, PARK AND ABDEL-ATY, 2016 | H31: 2039 | I31: =((1+$C$49)^(H31-#REF!))-1 ->  | J31: 0.00 | K31: 0.00 | L31: 0.00 | M31: 0.00 | N31: 0.00 | O31: 0.00 | P31: 0.00 | Q31: 0.00 | R31: 0.00 | S31: $0
H32: 2040 | I32: =((1+$C$49)^(H32-#REF!))-1 ->  | J32: 0.00 | K32: 0.00 | L32: 0.00 | M32: 0.00 | N32: 0.00 | O32: 0.00 | P32: 0.00 | Q32: 0.00 | R32: 0.00 | S32: $0
H33: 2041 | I33: =((1+$C$49)^(H33-#REF!))-1 ->  | J33: 0.00 | K33: 0.00 | L33: 0.00 | M33: 0.00 | N33: 0.00 | O33: 0.00 | P33: 0.00 | Q33: 0.00 | R33: 0.00 | S33: $0
A34: Source: | B34: www.cmfclearinghouse.org | H34: 2042 | I34: =((1+$C$49)^(H34-#REF!))-1 ->  | J34: 0.00 | K34: 0.00 | L34: 0.00 | M34: 0.00 | N34: 0.00 | O34: 0.00 | P34: 0.00 | Q34: 0.00 | R34: 0.00 | S34: $0
A35: Crash Modification Factor | H35: 2043 | I35: =((1+$C$49)^(H35-#REF!))-1 ->  | J35: 0.00 | K35: 0.00 | L35: 0.00 | M35: 0.00 | N35: 0.00 | O35: 0.00 | P35: 0.00 | Q35: 0.00 | R35: 0.00 | S35: $0
A36: Widen Lanes | C36: 0.72 | H36: 2044 | I36: =((1+$C$49)^(H36-#REF!))-1 ->  | J36: 0.00 | K36: 0.00 | L36: 0.00 | M36: 0.00 | N36: 0.00 | O36: 0.00 | P36: 0.00 | Q36: 0.00 | R36: 0.00 | S36: $0
A37: CMF ID:3936 INCREASE LANE WIDTH STUDY: A COMPARATIVE FULL BAYESIAN BEFORE-AND-AFTER ANAYLSIS AND APPLICATION TO URBAN ROAD SAFETY COUNTERMEASURES IN NEW JERSEY, YANMAZ-TUZEL AND OZBAY, 2010 | H37: 2045 | I37: =((1+$C$49)^(H37-#REF!))-1 ->  | J37: 0.00 | K37: 0.00 | L37: 0.00 | M37: 0.00 | N37: 0.00 | O37: 0.00 | P37: 0.00 | Q37: 0.00 | R37: 0.00 | S37: $0
H38: 2046 | I38: =((1+$C$49)^(H38-#REF!))-1 ->  | J38: 0.00 | K38: 0.00 | L38: 0.00 | M38: 0.00 | N38: 0.00 | O38: 0.00 | P38: 0.00 | Q38: 0.00 | R38: 0.00 | S38: $0
H39: 2047 | I39: =((1+$C$49)^(H39-#REF!))-1 ->  | J39: 0.00 | K39: 0.00 | L39: 0.00 | M39: 0.00 | N39: 0.00 | O39: 0.00 | P39: 0.00 | Q39: 0.00 | R39: 0.00 | S39: $0
H40: 2048 | I40: =((1+$C$49)^(H40-#REF!))-1 ->  | J40: 0.00 | K40: 0.00 | L40: 0.00 | M40: 0.00 | N40: 0.00 | O40: 0.00 | P40: 0.00 | Q40: 0.00 | R40: 0.00 | S40: $0
A41: Using the Dominant Common Residuals Method | H41: 2049 | I41: =((1+$C$49)^(H41-#REF!))-1 ->  | J41: 0.00 | K41: 0.00 | L41: 0.00 | M41: 0.00 | N41: 0.00 | O41: 0.00 | P41: 0.00 | Q41: 0.00 | R41: 0.00 | S41: $0
A42: CMF1 | B42: 0.72 | H42: 2050 | I42: =((1+$C$49)^(H42-#REF!))-1 ->  | J42: 0.00 | K42: 0.00 | L42: 0.00 | M42: 0.00 | N42: 0.00 | O42: 0.00 | P42: 0.00 | Q42: 0.00 | R42: 0.00 | S42: $0
A43: CMF2 | B43: 0.93 | H43: 2051 | I43: =((1+$C$49)^(H43-#REF!))-1 ->  | J43: 0.00 | K43: 0.00 | L43: 0.00 | M43: 0.00 | N43: 0.00 | O43: 0.00 | P43: 0.00 | Q43: 0.00 | R43: 0.00 | S43: $0
A44: CMFT | B44: =(B42*B43)^B42 -> 0.75 | H44: 2052 | I44: =((1+$C$49)^(H44-#REF!))-1 ->  | J44: 0.00 | K44: 0.00 | L44: 0.00 | M44: 0.00 | N44: 0.00 | O44: 0.00 | P44: 0.00 | Q44: 0.00 | R44: 0.00 | S44: $0
H45: 2053 | I45: =((1+$C$49)^(H45-#REF!))-1 ->  | J45: 0.00 | K45: 0.00 | L45: 0.00 | M45: 0.00 | N45: 0.00 | O45: 0.00 | P45: 0.00 | Q45: 0.00 | R45: 0.00 | S45: $0
A46: If CMF1 is < CMT, use CMF1 per Dominant Effect Method | H46: 2054 | I46: =((1+$C$49)^(H46-#REF!))-1 ->  | J46: 0.00 | K46: 0.00 | L46: 0.00 | M46: 0.00 | N46: 0.00 | O46: 0.00 | P46: 0.00 | Q46: 0.00 | R46: 0.00 | S46: $0
H47: 2055 | I47: =((1+$C$49)^(H47-#REF!))-1 ->  | J47: 0.00 | K47: 0.00 | L47: 0.00 | M47: 0.00 | N47: 0.00 | O47: 0.00 | P47: 0.00 | Q47: 0.00 | R47: 0.00 | S47: $0
A48: CMF | B48: 0 | H48: 2056 | I48: =((1+$C$49)^(H48-#REF!))-1 ->  | J48: 0.00 | K48: 0.00 | L48: 0.00 | M48: 0.00 | N48: 0.00 | O48: 0.00 | P48: 0.00 | Q48: 0.00 | R48: 0.00 | S48: $0
H49: 2057 | I49: =((1+$C$49)^(H49-#REF!))-1 ->  | J49: 0.00 | K49: 0.00 | L49: 0.00 | M49: 0.00 | N49: 0.00 | O49: 0.00 | P49: =ABS(J49-M49) -> 0.00 | Q49: =ABS(K49-N49) -> 0.00 | R49: =ABS(L49-O49) -> 0.00 | S49: =((P49*$B$12)+(Q49*$B$13)+(R49*$B$14)) -> $0
H50: 2058 | I50: =((1+$C$49)^(H50-#REF!))-1 ->  | J50: 0.00 | K50: 0.00 | L50: 0.00 | M50: 0.00 | N50: 0.00 | O50: 0.00 | P50: 0.00 | Q50: 0.00 | R50: 0.00 | S50: $0
H51: 2059 | I51: =((1+$C$49)^(H51-#REF!))-1 ->  | J51: 0.00 | K51: 0.00 | L51: 0.00 | M51: 0.00 | N51: 0.00 | O51: 0.00 | P51: =ABS(J51-M51) -> 0.00 | Q51: =ABS(K51-N51) -> 0.00 | R51: =ABS(L51-O51) -> 0.00 | S51: =((P51*$B$12)+(Q51*$B$13)+(R51*$B$14)) -> $0
H52: 2060 | I52: =((1+$C$49)^(H52-#REF!))-1 ->  | J52: =C$24 -> 0.00 | K52: =C$25 -> 0.00 | L52: =C$26 -> 0.00 | M52: =ROUNDUP(J52*$B$48,2) -> 0.00 | N52: =ROUNDUP(K52*$B$48,2) -> 0.00 | O52: =ROUNDUP(L52*$B$48,2) -> 0.00 | P52: =ABS(J52-M52) -> 0.00 | Q52: =ABS(K52-N52) -> 0.00 | R52: =ABS(L52-O52) -> 0.00 | S52: =((P52*$B$12)+(Q52*$B$13)+(R52*$B$14)) -> $0
R53: Total | S53: =SUM(S14:S52) -> $0
